Publisher Label,Publisher URI,"Supplier","Invoice ","Amount (£)","Purpose","Transaction Number","Payment Date","Organisational Unit","Cost Centre(T)","Internal category number"
"Wolverhampton City Council","http://opendatacommunities.org/id/metropolitan-district-council/wolverhampton","T H White Limited","E75099","123.82","Equipment - Purchase","190273426","07/10/2016","Fleet Services","Fleet Management","R4000"
"Wolverhampton City Council","http://opendatacommunities.org/id/metropolitan-district-council/wolverhampton","T H White Limited","683319","16.00","Equipment - Purchase","190274686","12/10/2016","Fleet Services","Fleet Management","R4000"
"Wolverhampton City Council","http://opendatacommunities.org/id/metropolitan-district-council/wolverhampton","T H White Limited","683319","21.60","Equipment - Purchase","190274686","12/10/2016","Fleet Services","Fleet Management","R4000"
"Wolverhampton City Council","http://opendatacommunities.org/id/metropolitan-district-council/wolverhampton","T H White Limited","683319","7.76","Equipment - Purchase","190274686","12/10/2016","Fleet Services","Fleet Management","R4000"
"Wolverhampton City Council","http://opendatacommunities.org/id/metropolitan-district-council/wolverhampton","T H White Limited","E75311","0.48","Equipment - Purchase","190277129","21/10/2016","Fleet Services","Fleet Management","R4000"
"Wolverhampton City Council","http://opendatacommunities.org/id/metropolitan-district-council/wolverhampton","T H White Limited","E73391","70.30","Equipment - Purchase","190277659","21/10/2016","Fleet Services","Fleet Management","R4000"
"Wolverhampton City Council","http://opendatacommunities.org/id/metropolitan-district-council/wolverhampton","T H White Limited","E73942","7.28","Equipment - Purchase","190277660","21/10/2016","Fleet Services","Fleet Management","R4000"
"Wolverhampton City Council","http://opendatacommunities.org/id/metropolitan-district-council/wolverhampton","T H White Limited","E73942","39.28","Equipment - Purchase","190277660","21/10/2016","Fleet Services","Fleet Management","R4000"
"Wolverhampton City Council","http://opendatacommunities.org/id/metropolitan-district-council/wolverhampton","T H White Limited","E73942","20.64","Equipment - Purchase","190277660","21/10/2016","Fleet Services","Fleet Management","R4000"
"Wolverhampton City Council","http://opendatacommunities.org/id/metropolitan-district-council/wolverhampton","T H White Limited","E73942","108.32","Equipment - Purchase","190277660","21/10/2016","Fleet Services","Fleet Management","R4000"
"Wolverhampton City Council","http://opendatacommunities.org/id/metropolitan-district-council/wolverhampton","T H White Limited","E75283","30.93","Equipment - Purchase","190275311","14/10/2016","Fleet Services","Fleet Management","R4000"
"Wolverhampton City Council","http://opendatacommunities.org/id/metropolitan-district-council/wolverhampton","T H White Limited","E75429","0.40","Equipment - Purchase","190275313","14/10/2016","Fleet Services","Fleet Management","R4000"
"Wolverhampton City Council","http://opendatacommunities.org/id/metropolitan-district-council/wolverhampton","T H White Limited","E75429","59.96","Equipment - Purchase","190275313","14/10/2016","Fleet Services","Fleet Management","R4000"
"Wolverhampton City Council","http://opendatacommunities.org/id/metropolitan-district-council/wolverhampton","T H White Limited","E75429","200.18","Equipment - Purchase","190275313","14/10/2016","Fleet Services","Fleet Management","R4000"
"Wolverhampton City Council","http://opendatacommunities.org/id/metropolitan-district-council/wolverhampton","T H White Limited","E75429","1.26","Equipment - Purchase","190275313","14/10/2016","Fleet Services","Fleet Management","R4000"
"Wolverhampton City Council","http://opendatacommunities.org/id/metropolitan-district-council/wolverhampton","T H White Limited","E75429","0.40","Equipment - Purchase","190275313","14/10/2016","Fleet Services","Fleet Management","R4000"
"Wolverhampton City Council","http://opendatacommunities.org/id/metropolitan-district-council/wolverhampton","T H White Limited","E75429","9.88","Equipment - Purchase","190275313","14/10/2016","Fleet Services","Fleet Management","R4000"
"Wolverhampton City Council","http://opendatacommunities.org/id/metropolitan-district-council/wolverhampton","T H White Limited","E75429","19.77","Equipment - Purchase","190275313","14/10/2016","Fleet Services","Fleet Management","R4000"
"Wolverhampton City Council","http://opendatacommunities.org/id/metropolitan-district-council/wolverhampton","T H White Limited","E75429","62.53","Equipment - Purchase","190275313","14/10/2016","Fleet Services","Fleet Management","R4000"
"Wolverhampton City Council","http://opendatacommunities.org/id/metropolitan-district-council/wolverhampton","T H White Limited","E75429","210.02","Equipment - Purchase","190275313","14/10/2016","Fleet Services","Fleet Management","R4000"
"Wolverhampton City Council","http://opendatacommunities.org/id/metropolitan-district-council/wolverhampton","T H White Limited","E75429","59.96","Equipment - Purchase","190275313","14/10/2016","Fleet Services","Fleet Management","R4000"
"Wolverhampton City Council","http://opendatacommunities.org/id/metropolitan-district-council/wolverhampton","T H White Limited","E75429","4.07","Equipment - Purchase","190275313","14/10/2016","Fleet Services","Fleet Management","R4000"
"Wolverhampton City Council","http://opendatacommunities.org/id/metropolitan-district-council/wolverhampton","T H White Limited","E75283","39.95","Equipment - Purchase","190275311","14/10/2016","Fleet Services","Fleet Management","R4000"
"Wolverhampton City Council","http://opendatacommunities.org/id/metropolitan-district-council/wolverhampton","T H White Limited","E75283","13.60","Equipment - Purchase","190275311","14/10/2016","Fleet Services","Fleet Management","R4000"
"Wolverhampton City Council","http://opendatacommunities.org/id/metropolitan-district-council/wolverhampton","T H White Limited","E75283","45.66","Equipment - Purchase","190275311","14/10/2016","Fleet Services","Fleet Management","R4000"
"Wolverhampton City Council","http://opendatacommunities.org/id/metropolitan-district-council/wolverhampton","T H White Limited","E75284","12.37","Equipment - Purchase","190275312","14/10/2016","Fleet Services","Fleet Management","R4000"
"Wolverhampton City Council","http://opendatacommunities.org/id/metropolitan-district-council/wolverhampton","T H White Limited","E75284","6.20","Equipment - Purchase","190275312","14/10/2016","Fleet Services","Fleet Management","R4000"
"Wolverhampton City Council","http://opendatacommunities.org/id/metropolitan-district-council/wolverhampton","T H White Limited","E75284","196.17","Equipment - Purchase","190275312","14/10/2016","Fleet Services","Fleet Management","R4000"
"Wolverhampton City Council","http://opendatacommunities.org/id/metropolitan-district-council/wolverhampton","Telent:Ttsl Traffic Signals/Technology UK","1098350","1,389.29","TPP - Maintenance Contractor - General","130137959","07/10/2016","Operation & Maintenance of Existing Network","Traffic Signals","R5720"
"Wolverhampton City Council","http://opendatacommunities.org/id/metropolitan-district-council/wolverhampton","Telent:Ttsl Traffic Signals/Technology UK","1098617","343.91","TPP - Maintenance Contractor - General","130139311","26/10/2016","Operation & Maintenance of Existing Network","Traffic Signals","R5720"
"Wolverhampton City Council","http://opendatacommunities.org/id/metropolitan-district-council/wolverhampton","Telent:Ttsl Traffic Signals/Technology UK","1098618","960.74","TPP - Maintenance Contractor - General","130139312","26/10/2016","Operation & Maintenance of Existing Network","Traffic Signals","R5720"
"Wolverhampton City Council","http://opendatacommunities.org/id/metropolitan-district-council/wolverhampton","Telent:Ttsl Traffic Signals/Technology UK","1098628","2,402.80","TPP - Maintenance Contractor - General","130139313","26/10/2016","Operation & Maintenance of Existing Network","Traffic Signals","R5720"
"Wolverhampton City Council","http://opendatacommunities.org/id/metropolitan-district-council/wolverhampton","Telewest Communications/Virgin Media","037795701/501/0916","6.01","Equipment - Hire","130137787","07/10/2016","Operation & Maintenance of Existing Network","Traffic Signals","R4001"
"Wolverhampton City Council","http://opendatacommunities.org/id/metropolitan-district-council/wolverhampton","Telewest Communications/Virgin Media","046213701/0616","10.99","Comms - Telephone Call charges","130124822","07/10/2016","Housing Revenue Account - Communities","Carelink","R4505"
"Wolverhampton City Council","http://opendatacommunities.org/id/metropolitan-district-council/wolverhampton","Telewest Communications/Virgin Media","39186401/0716","35,596.62","Comms - Telephone Rental","190272923","07/10/2016","ICTS","Strategic ICTS (ICT Service Budget)","R4504"
"Wolverhampton City Council","http://opendatacommunities.org/id/metropolitan-district-council/wolverhampton","Telewest Communications/Virgin Media","39186401/0516","35,542.66","Comms - Telephone Rental","190272921","07/10/2016","ICTS","Strategic ICTS (ICT Service Budget)","R4504"
"Wolverhampton City Council","http://opendatacommunities.org/id/metropolitan-district-council/wolverhampton","Telewest Communications/Virgin Media","39186401/0616","35,601.70","Comms - Telephone Rental","190272922","07/10/2016","ICTS","Strategic ICTS (ICT Service Budget)","R4504"
"Wolverhampton City Council","http://opendatacommunities.org/id/metropolitan-district-council/wolverhampton","Telewest Communications/Virgin Media","39186401/0816","27,520.37","Comms - Telephone Rental","190272924","07/10/2016","ICTS","Strategic ICTS (ICT Service Budget)","R4504"
"Wolverhampton City Council","http://opendatacommunities.org/id/metropolitan-district-council/wolverhampton","Telewest Communications/Virgin Media","39186401/0916","26,471.97","Comms - Telephone Rental","190272925","07/10/2016","ICTS","Strategic ICTS (ICT Service Budget)","R4504"
"Wolverhampton City Council","http://opendatacommunities.org/id/metropolitan-district-council/wolverhampton","Telewest Communications/Virgin Media","804156 - 180","13.76","Comms - Telephone Rental","130140810","26/10/2016","Looked After Children","Head of Service - LAC","R4504"
"Wolverhampton City Council","http://opendatacommunities.org/id/metropolitan-district-council/wolverhampton","Telewest Communications/Virgin Media","804157 - 180","0.26","Comms - Telephone Rental","130140811","26/10/2016","Looked After Children","Head of Service - LAC","R4504"
"Wolverhampton City Council","http://opendatacommunities.org/id/metropolitan-district-council/wolverhampton","Telewest Communications/Virgin Media","046213201/001/0916","10.99","Comms - Telephone Call charges","130141583","21/10/2016","Housing Revenue Account - Communities","Carelink","R4505"
"Wolverhampton City Council","http://opendatacommunities.org/id/metropolitan-district-council/wolverhampton","Telewest Communications/Virgin Media","046927101/001/0916","7.50","Equipment - Hire","130137789","12/10/2016","Operation & Maintenance of Existing Network","Traffic Signals","R4001"
"Wolverhampton City Council","http://opendatacommunities.org/id/metropolitan-district-council/wolverhampton","Telewest Communications/Virgin Media","039003702/001/0916","6.24","Equipment - Hire","130138480","14/10/2016","Operation & Maintenance of Existing Network","Traffic Signals","R4001"
"Wolverhampton City Council","http://opendatacommunities.org/id/metropolitan-district-council/wolverhampton","Telewest Communications/Virgin Media","039003802/0815","7.56","Comms - Telephone Rental","130128231","14/10/2016","Catering","Primary Schools Catering","R4504"
"Wolverhampton City Council","http://opendatacommunities.org/id/metropolitan-district-council/wolverhampton","Telewest Communications/Virgin Media","039003802/1113","19.62","Comms - Telephone Rental","130128232","14/10/2016","Catering","Primary Schools Catering","R4504"
"Wolverhampton City Council","http://opendatacommunities.org/id/metropolitan-district-council/wolverhampton","Terberg Matec UK Limited","96331952","135.54","Equipment - Purchase","190273419","07/10/2016","Fleet Services","Fleet Management","R4000"
"Wolverhampton City Council","http://opendatacommunities.org/id/metropolitan-district-council/wolverhampton","Terberg Matec UK Limited","96331952","62.47","Equipment - Purchase","190273419","07/10/2016","Fleet Services","Fleet Management","R4000"
"Wolverhampton City Council","http://opendatacommunities.org/id/metropolitan-district-council/wolverhampton","Terberg Matec UK Limited","96331952","106.70","Equipment - Purchase","190273419","07/10/2016","Fleet Services","Fleet Management","R4000"
"Wolverhampton City Council","http://opendatacommunities.org/id/metropolitan-district-council/wolverhampton","Terberg Matec UK Limited","96331952","50.53","Equipment - Purchase","190273419","07/10/2016","Fleet Services","Fleet Management","R4000"
"Wolverhampton City Council","http://opendatacommunities.org/id/metropolitan-district-council/wolverhampton","Terberg Matec UK Limited","96331952","112.44","Equipment - Purchase","190273419","07/10/2016","Fleet Services","Fleet Management","R4000"
"Wolverhampton City Council","http://opendatacommunities.org/id/metropolitan-district-council/wolverhampton","Terberg Matec UK Limited","96331608","18.01","Equipment - Purchase","190272277","05/10/2016","Fleet Services","Fleet Management","R4000"
"Wolverhampton City Council","http://opendatacommunities.org/id/metropolitan-district-council/wolverhampton","Terberg Matec UK Limited","96331608","7.15","Equipment - Purchase","190272277","05/10/2016","Fleet Services","Fleet Management","R4000"
"Wolverhampton City Council","http://opendatacommunities.org/id/metropolitan-district-council/wolverhampton","Terberg Matec UK Limited","96331608","17.69","Equipment - Purchase","190272277","05/10/2016","Fleet Services","Fleet Management","R4000"
"Wolverhampton City Council","http://opendatacommunities.org/id/metropolitan-district-council/wolverhampton","Terberg Matec UK Limited","96331608","134.61","Equipment - Purchase","190272277","05/10/2016","Fleet Services","Fleet Management","R4000"
"Wolverhampton City Council","http://opendatacommunities.org/id/metropolitan-district-council/wolverhampton","Terberg Matec UK Limited","96331608","3.15","Equipment - Purchase","190272277","05/10/2016","Fleet Services","Fleet Management","R4000"
"Wolverhampton City Council","http://opendatacommunities.org/id/metropolitan-district-council/wolverhampton","Terberg Matec UK Limited","96331880","58.50","Equipment - Purchase","190272278","05/10/2016","Fleet Services","Fleet Management","R4000"
"Wolverhampton City Council","http://opendatacommunities.org/id/metropolitan-district-council/wolverhampton","Terberg Matec UK Limited","96331880","12.62","Equipment - Purchase","190272278","05/10/2016","Fleet Services","Fleet Management","R4000"
"Wolverhampton City Council","http://opendatacommunities.org/id/metropolitan-district-council/wolverhampton","Terberg Matec UK Limited","96331608","42.73","Equipment - Purchase","190272277","05/10/2016","Fleet Services","Fleet Management","R4000"
"Wolverhampton City Council","http://opendatacommunities.org/id/metropolitan-district-council/wolverhampton","Terberg Matec UK Limited","96331608","18.98","Equipment - Purchase","190272277","05/10/2016","Fleet Services","Fleet Management","R4000"
"Wolverhampton City Council","http://opendatacommunities.org/id/metropolitan-district-council/wolverhampton","Terberg Matec UK Limited","96330170","10.71","Equipment - Purchase","190277111","21/10/2016","Fleet Services","Fleet Management","R4000"
"Wolverhampton City Council","http://opendatacommunities.org/id/metropolitan-district-council/wolverhampton","Terberg Matec UK Limited","96330170","69.17","Equipment - Purchase","190277111","21/10/2016","Fleet Services","Fleet Management","R4000"
"Wolverhampton City Council","http://opendatacommunities.org/id/metropolitan-district-council/wolverhampton","Terberg Matec UK Limited","96330170","11.35","Equipment - Purchase","190277111","21/10/2016","Fleet Services","Fleet Management","R4000"
"Wolverhampton City Council","http://opendatacommunities.org/id/metropolitan-district-council/wolverhampton","Terberg Matec UK Limited","96330170","10.87","Equipment - Purchase","190277111","21/10/2016","Fleet Services","Fleet Management","R4000"
"Wolverhampton City Council","http://opendatacommunities.org/id/metropolitan-district-council/wolverhampton","Terberg Matec UK Limited","96330170","9.21","Equipment - Purchase","190277111","21/10/2016","Fleet Services","Fleet Management","R4000"
"Wolverhampton City Council","http://opendatacommunities.org/id/metropolitan-district-council/wolverhampton","Terberg Matec UK Limited","96332523","37.09","Equipment - Purchase","190277112","21/10/2016","Fleet Services","Fleet Management","R4000"
"Wolverhampton City Council","http://opendatacommunities.org/id/metropolitan-district-council/wolverhampton","Terberg Matec UK Limited","96332523","55.84","Equipment - Purchase","190277112","21/10/2016","Fleet Services","Fleet Management","R4000"
"Wolverhampton City Council","http://opendatacommunities.org/id/metropolitan-district-council/wolverhampton","Terberg Matec UK Limited","96333256","47.34","Equipment - Purchase","190277652","21/10/2016","Fleet Services","Fleet Management","R4000"
"Wolverhampton City Council","http://opendatacommunities.org/id/metropolitan-district-council/wolverhampton","Terberg Matec UK Limited","96332390","577.98","Equipment - Purchase","190275307","14/10/2016","Fleet Services","Fleet Management","R4000"
"Wolverhampton City Council","http://opendatacommunities.org/id/metropolitan-district-council/wolverhampton","Terberg Matec UK Limited","96332432","20.73","Services - Professional Fees","190275308","14/10/2016","Fleet Services","Fleet Management","R4400"
"Wolverhampton City Council","http://opendatacommunities.org/id/metropolitan-district-council/wolverhampton","Tettenhall Wood Community Assoc.","353","14.30","Room Hire","130139586","07/10/2016","Carer Support","Carers Support","R2201"
"Wolverhampton City Council","http://opendatacommunities.org/id/metropolitan-district-council/wolverhampton","Tettenhall Wood Community Assoc.","346","14.30","Room Hire","130140977","21/10/2016","Carer Support","Carers Support","R2201"
"Wolverhampton City Council","http://opendatacommunities.org/id/metropolitan-district-council/wolverhampton","The Bigword Interpreting Serv. Limited","INV20154220","48.00","Services - Translation fees","130137450","07/10/2016","Early Intervention","EIP Locality 5","R4406"
"Wolverhampton City Council","http://opendatacommunities.org/id/metropolitan-district-council/wolverhampton","The Bigword Interpreting Serv. Limited","INV20154109","32.00","Services - Professional Fees","130136879","07/10/2016","Governance Services","Democratic Support","R4400"
"Wolverhampton City Council","http://opendatacommunities.org/id/metropolitan-district-council/wolverhampton","The Bigword Interpreting Serv. Limited","INV20154105","48.00","Services - Translation fees","130136876","07/10/2016","Older People Assessment & Care Management","Assessment Team (West)","R4406"
"Wolverhampton City Council","http://opendatacommunities.org/id/metropolitan-district-council/wolverhampton","The Bigword Interpreting Serv. Limited","INV20154352","32.00","Services - Professional Fees","130137733","07/10/2016","Child Protection","CIN/CP Social Work Unit - Area 6","R4400"
"Wolverhampton City Council","http://opendatacommunities.org/id/metropolitan-district-council/wolverhampton","The Bigword Interpreting Serv. Limited","INV20154229","48.00","Services - Translation fees","130137451","07/10/2016","Older People Assessment & Care Management","Assessment Team (West)","R4406"
"Wolverhampton City Council","http://opendatacommunities.org/id/metropolitan-district-council/wolverhampton","The Bigword Interpreting Serv. Limited","INV20154149","32.00","Services - Translation fees","130137125","07/10/2016","Older People Assessment & Care Management","Assessment Team (East)","R4406"
"Wolverhampton City Council","http://opendatacommunities.org/id/metropolitan-district-council/wolverhampton","The Bigword Interpreting Serv. Limited","INV20154107","40.00","Services - Translation fees","130136877","07/10/2016","Older People Assessment & Care Management","Assessment Team (East)","R4406"
"Wolverhampton City Council","http://opendatacommunities.org/id/metropolitan-district-council/wolverhampton","The Bigword Interpreting Serv. Limited","INV20154150","80.00","Services - Translation fees","130137126","07/10/2016","Physical Disabilities Assessment","Physical & Sensory Disabilities Management","R4406"
"Wolverhampton City Council","http://opendatacommunities.org/id/metropolitan-district-council/wolverhampton","The Bigword Interpreting Serv. Limited","INV548284","35.80","Services - Translation fees","130135720","07/10/2016","Safeguarding","Safeguarding and Quality - Adults","R4406"
"Wolverhampton City Council","http://opendatacommunities.org/id/metropolitan-district-council/wolverhampton","The Bigword Interpreting Serv. Limited","INV20154217","48.00","Services - Professional Fees","130137325","07/10/2016","Child Protection","CIN/CP Social Work Unit - Area 6","R4400"
"Wolverhampton City Council","http://opendatacommunities.org/id/metropolitan-district-council/wolverhampton","The Bigword Interpreting Serv. Limited","INV20154216","80.00","Services - Translation fees","130137324","07/10/2016","Looked After Children","LAC Transitions Team","R4406"
"Wolverhampton City Council","http://opendatacommunities.org/id/metropolitan-district-council/wolverhampton","The Bigword Interpreting Serv. Limited","INV20154263","48.00","Services - Translation fees","130137571","07/10/2016","Child Protection","CIN/CP S17  SW Unit - Area 3A","R4406"
"Wolverhampton City Council","http://opendatacommunities.org/id/metropolitan-district-council/wolverhampton","The Bigword Interpreting Serv. Limited","INV20154070","32.00","Services - Translation fees","130136875","07/10/2016","Early Intervention","EIP Locality 3","R4406"
"Wolverhampton City Council","http://opendatacommunities.org/id/metropolitan-district-council/wolverhampton","The Bigword Interpreting Serv. Limited","INV20154108","32.00","Services - Translation fees","130136878","07/10/2016","Child Protection","CIN/CP S17  SW Unit - Area 3A","R4406"
"Wolverhampton City Council","http://opendatacommunities.org/id/metropolitan-district-council/wolverhampton","The Bigword Interpreting Serv. Limited","INV20154135","72.00","Services - Translation fees","130137123","07/10/2016","Child Protection","CIN/CP S17  SW Unit - Area 3A","R4406"
"Wolverhampton City Council","http://opendatacommunities.org/id/metropolitan-district-council/wolverhampton","The Bigword Interpreting Serv. Limited","INV20154143","48.00","Services - Translation fees","130137124","07/10/2016","Older People Assessment & Care Management","Assessment Team (West)","R4406"
"Wolverhampton City Council","http://opendatacommunities.org/id/metropolitan-district-council/wolverhampton","The Bigword Interpreting Serv. Limited","INV20154030","48.00","Services - Translation fees","130136708","05/10/2016","Child Protection","CIN/CP Social Work Unit - Area 2","R4406"
"Wolverhampton City Council","http://opendatacommunities.org/id/metropolitan-district-council/wolverhampton","The Bigword Interpreting Serv. Limited","INV20153878","32.00","Services - Translation fees","130136545","05/10/2016","Children With Disabilities","Childrens with Disabilities Team","R4406"
"Wolverhampton City Council","http://opendatacommunities.org/id/metropolitan-district-council/wolverhampton","The Bigword Interpreting Serv. Limited","INV20154955","40.00","Services - Translation fees","130138725","26/10/2016","Child Protection","CIN/CP S17  SW Unit - Area 3A","R4406"
"Wolverhampton City Council","http://opendatacommunities.org/id/metropolitan-district-council/wolverhampton","The Bigword Interpreting Serv. Limited","INV20145789","60.00","Services - Translation fees","130140720","26/10/2016","Child Protection","CIN/CP Social Work Unit - Area 8","R4406"
"Wolverhampton City Council","http://opendatacommunities.org/id/metropolitan-district-council/wolverhampton","The Bigword Interpreting Serv. Limited","INV20145788","120.00","Services - Translation fees","130140719","26/10/2016","Child Protection","CIN/CP Social Work Unit - Area 8","R4406"
"Wolverhampton City Council","http://opendatacommunities.org/id/metropolitan-district-council/wolverhampton","The Bigword Interpreting Serv. Limited","INV20155299","60.00","Services - Professional Fees","130139183","26/10/2016","Safeguarding","MCA General","R4400"
"Wolverhampton City Council","http://opendatacommunities.org/id/metropolitan-district-council/wolverhampton","The Bigword Interpreting Serv. Limited","INV20155284","64.00","Services - Translation fees","130139182","26/10/2016","Looked After Children","LAC Transitions Team","R4406"
"Wolverhampton City Council","http://opendatacommunities.org/id/metropolitan-district-council/wolverhampton","The Bigword Interpreting Serv. Limited","INV20155283","32.00","Services - Translation fees","130139181","26/10/2016","Early Intervention","EIP Locality 3","R4406"
"Wolverhampton City Council","http://opendatacommunities.org/id/metropolitan-district-council/wolverhampton","The Bigword Interpreting Serv. Limited","INV20155050","32.00","Services - Translation fees","130138868","26/10/2016","Early Intervention","EIP Locality 3","R4406"
"Wolverhampton City Council","http://opendatacommunities.org/id/metropolitan-district-council/wolverhampton","The Bigword Interpreting Serv. Limited","INV20155202","32.00","Services - Translation fees","130139179","26/10/2016","Speclialist Support","Vulnerable Young Persons Team","R4406"
"Wolverhampton City Council","http://opendatacommunities.org/id/metropolitan-district-council/wolverhampton","The Bigword Interpreting Serv. Limited","INV20155354","32.00","Services - Translation fees","130139184","26/10/2016","Physical Disabilities Assessment","Physical & Sensory Disabilities Management","R4406"
"Wolverhampton City Council","http://opendatacommunities.org/id/metropolitan-district-council/wolverhampton","The Bigword Interpreting Serv. Limited","INV20154976","64.00","Services - Translation fees","130138726","26/10/2016","Child Protection","CIN/CP S17  SW Unit - Area 3A","R4406"
"Wolverhampton City Council","http://opendatacommunities.org/id/metropolitan-district-council/wolverhampton","The Bigword Interpreting Serv. Limited","INV20155070","32.00","Services - Translation fees","130138870","26/10/2016","Child Protection","CIN/CP S17  SW Unit - Area 3A","R4406"
"Wolverhampton City Council","http://opendatacommunities.org/id/metropolitan-district-council/wolverhampton","The Bigword Interpreting Serv. Limited","INV20155119","48.00","Services - Translation fees","130139031","26/10/2016","Child Protection","CIN/CP S17  SW Unit - Area 3A","R4406"
"Wolverhampton City Council","http://opendatacommunities.org/id/metropolitan-district-council/wolverhampton","The Bigword Interpreting Serv. Limited","INV20155207","32.00","Services - Professional Fees","130139180","26/10/2016","Governance Services","Democratic Support","R4400"
"Wolverhampton City Council","http://opendatacommunities.org/id/metropolitan-district-council/wolverhampton","The Bigword Interpreting Serv. Limited","INV20155073","32.00","Services - Translation fees","130138871","26/10/2016","Older People Assessment & Care Management","Assessment Team (West)","R4406"
"Wolverhampton City Council","http://opendatacommunities.org/id/metropolitan-district-council/wolverhampton","The Bigword Interpreting Serv. Limited","INV20154979","32.00","Services - Translation fees","130138727","26/10/2016","Older People Assessment & Care Management","Assessment Team (West)","R4406"
"Wolverhampton City Council","http://opendatacommunities.org/id/metropolitan-district-council/wolverhampton","The Bigword Interpreting Serv. Limited","INV20154986","32.00","Services - Translation fees","130138866","26/10/2016","Child Protection","CIN/CP S17  SW Unit - Area 4","R4406"
"Wolverhampton City Council","http://opendatacommunities.org/id/metropolitan-district-council/wolverhampton","The Bigword Interpreting Serv. Limited","INV20155049","64.00","Services - Translation fees","130138867","26/10/2016","Child Protection","CIN - Avenues MAST - Area 7","R4406"
"Wolverhampton City Council","http://opendatacommunities.org/id/metropolitan-district-council/wolverhampton","The Bigword Interpreting Serv. Limited","INV550128","57.35","Services - Translation fees","130139753","26/10/2016","Children With Disabilities","Childrens with Disabilities Team","R4406"
"Wolverhampton City Council","http://opendatacommunities.org/id/metropolitan-district-council/wolverhampton","The Bigword Interpreting Serv. Limited","INV550655","44.49","Services - Professional Fees","130139755","26/10/2016","Child Protection","CIN/CP Social Work Unit - Area 3B","R4400"
"Wolverhampton City Council","http://opendatacommunities.org/id/metropolitan-district-council/wolverhampton","The Bigword Interpreting Serv. Limited","INV550775","49.11","Services - Translation fees","130139756","26/10/2016","Child Protection","CIN/CP Social Work Unit - Area 8","R4406"
"Wolverhampton City Council","http://opendatacommunities.org/id/metropolitan-district-council/wolverhampton","The Bigword Interpreting Serv. Limited","INV20155121","48.00","Services - Translation fees","130139978","26/10/2016","Child Protection","CIN/CP Social Work Unit - Area 8","R4406"
"Wolverhampton City Council","http://opendatacommunities.org/id/metropolitan-district-council/wolverhampton","The Bigword Interpreting Serv. Limited","INV20155122","48.00","Services - Translation fees","130139032","26/10/2016","Older People Assessment & Care Management","Assessment Team (West)","R4406"
"Wolverhampton City Council","http://opendatacommunities.org/id/metropolitan-district-council/wolverhampton","The Bigword Interpreting Serv. Limited","INV550130","3.20","Services - Professional Fees","130139754","26/10/2016","Customer Services","City Direct","R4400"
"Wolverhampton City Council","http://opendatacommunities.org/id/metropolitan-district-council/wolverhampton","The Bigword Interpreting Serv. Limited","INV551142","11.07","Services - Translation fees","130139758","26/10/2016","Early Intervention","EIP Locality 5","R4406"
"Wolverhampton City Council","http://opendatacommunities.org/id/metropolitan-district-council/wolverhampton","The Bigword Interpreting Serv. Limited","INV20154403","40.00","Services - Translation fees","130137734","12/10/2016","Child Protection","CIN/CP S17  SW Unit - Area 3A","R4406"
"Wolverhampton City Council","http://opendatacommunities.org/id/metropolitan-district-council/wolverhampton","The Bigword Interpreting Serv. Limited","INV20154365","32.00","Services - Professional Fees","130137573","12/10/2016","Governance Services","Democratic Support","R4400"
"Wolverhampton City Council","http://opendatacommunities.org/id/metropolitan-district-council/wolverhampton","The Bigword Interpreting Serv. Limited","INV20154366","32.00","Services - Professional Fees","130137574","12/10/2016","Governance Services","Democratic Support","R4400"
"Wolverhampton City Council","http://opendatacommunities.org/id/metropolitan-district-council/wolverhampton","The Bigword Interpreting Serv. Limited","INV20154367","32.00","Services - Professional Fees","130137575","12/10/2016","Governance Services","Democratic Support","R4400"
"Wolverhampton City Council","http://opendatacommunities.org/id/metropolitan-district-council/wolverhampton","The Bigword Interpreting Serv. Limited","INV20154401","32.00","Services - Professional Fees","130137576","12/10/2016","Independent Living Service","Independent Living Service","R4400"
"Wolverhampton City Council","http://opendatacommunities.org/id/metropolitan-district-council/wolverhampton","The Bigword Interpreting Serv. Limited","INV20154402","64.00","Services - Translation fees","130137577","12/10/2016","Physical Disabilities Assessment","Physical & Sensory Disabilities Management","R4406"
"Wolverhampton City Council","http://opendatacommunities.org/id/metropolitan-district-council/wolverhampton","The Bigword Interpreting Serv. Limited","INV538025","12.35","Services - Translation fees","130133868","12/10/2016","Children With Disabilities","Childrens with Disabilities Team","R4406"
"Wolverhampton City Council","http://opendatacommunities.org/id/metropolitan-district-council/wolverhampton","The Bigword Interpreting Serv. Limited","INV20154364","56.00","Services - Translation fees","130137572","12/10/2016","Older People Assessment & Care Management","Assessment Team (East)","R4406"
"Wolverhampton City Council","http://opendatacommunities.org/id/metropolitan-district-council/wolverhampton","The Bigword Interpreting Serv. Limited","INV20154918","40.00","Services - Translation fees","130138596","21/10/2016","Early Intervention","EIP Locality 3","R4406"
"Wolverhampton City Council","http://opendatacommunities.org/id/metropolitan-district-council/wolverhampton","The Bigword Interpreting Serv. Limited","INV20154922","48.00","Services - Translation fees","130138600","21/10/2016","Early Intervention","EIP Locality 3","R4406"
"Wolverhampton City Council","http://opendatacommunities.org/id/metropolitan-district-council/wolverhampton","The Bigword Interpreting Serv. Limited","INV20154932","48.00","Services - Translation fees","130138602","21/10/2016","Child Protection","CIN/CP S17  SW Unit - Area 3A","R4406"
"Wolverhampton City Council","http://opendatacommunities.org/id/metropolitan-district-council/wolverhampton","The Bigword Interpreting Serv. Limited","INV20154920","32.00","Services - Professional Fees","130138598","21/10/2016","Speclialist Support","Intensive Family Support Team","R4400"
"Wolverhampton City Council","http://opendatacommunities.org/id/metropolitan-district-council/wolverhampton","The Bigword Interpreting Serv. Limited","INV20154923","32.00","Services - Professional Fees","130138601","21/10/2016","Speclialist Support","Intensive Family Support Team","R4400"
"Wolverhampton City Council","http://opendatacommunities.org/id/metropolitan-district-council/wolverhampton","The Bigword Interpreting Serv. Limited","INV20154919","48.00","Services - Translation fees","130138597","21/10/2016","Child Protection","CIN - Avenues MAST - Area 7","R4406"
"Wolverhampton City Council","http://opendatacommunities.org/id/metropolitan-district-council/wolverhampton","The Bigword Interpreting Serv. Limited","INV551169","13.51","Services - Translation fees","130139759","28/10/2016","Looked After Children","LAC Transitions Team","R4406"
"Wolverhampton City Council","http://opendatacommunities.org/id/metropolitan-district-council/wolverhampton","The Bigword Interpreting Serv. Limited","INV20154027","48.00","Services - Translation fees","130141285","28/10/2016","Child Protection","CIN/CP Social Work Unit - Area 8","R4406"
"Wolverhampton City Council","http://opendatacommunities.org/id/metropolitan-district-council/wolverhampton","The Bigword Interpreting Serv. Limited","INV20154861","32.00","Services - Translation fees","130138588","19/10/2016","Children With Disabilities","Childrens with Disabilities Team","R4406"
"Wolverhampton City Council","http://opendatacommunities.org/id/metropolitan-district-council/wolverhampton","The Bigword Interpreting Serv. Limited","INV20154865","64.00","Services - Translation fees","130138592","19/10/2016","Children With Disabilities","Childrens with Disabilities Team","R4406"
"Wolverhampton City Council","http://opendatacommunities.org/id/metropolitan-district-council/wolverhampton","The Bigword Interpreting Serv. Limited","INV20154860","32.00","Services - Translation fees","130138587","19/10/2016","Looked After Children","LAC Transitions Team","R4406"
"Wolverhampton City Council","http://opendatacommunities.org/id/metropolitan-district-council/wolverhampton","The Bigword Interpreting Serv. Limited","INV20154866","92.00","Services - Translation fees","130138593","19/10/2016","Physical Disabilities Assessment","Physical & Sensory Disabilities Management","R4406"
"Wolverhampton City Council","http://opendatacommunities.org/id/metropolitan-district-council/wolverhampton","The Bigword Interpreting Serv. Limited","INV20154849","32.00","Services - Translation fees","130138586","19/10/2016","Speclialist Support","Vulnerable Young Persons Team","R4406"
"Wolverhampton City Council","http://opendatacommunities.org/id/metropolitan-district-council/wolverhampton","The Bigword Interpreting Serv. Limited","INV20154867","32.00","Services - Translation fees","130138594","19/10/2016","Older People Assessment & Care Management","Assessment Team (West)","R4406"
"Wolverhampton City Council","http://opendatacommunities.org/id/metropolitan-district-council/wolverhampton","The Bigword Interpreting Serv. Limited","INV20154863","32.00","Services - Professional Fees","130138590","19/10/2016","Governance Services","Democratic Support","R4400"
"Wolverhampton City Council","http://opendatacommunities.org/id/metropolitan-district-council/wolverhampton","The Bigword Interpreting Serv. Limited","INV20154864","32.00","Services - Professional Fees","130138591","19/10/2016","Governance Services","Democratic Support","R4400"
"Wolverhampton City Council","http://opendatacommunities.org/id/metropolitan-district-council/wolverhampton","The Bigword Interpreting Serv. Limited","INV20154862","32.00","Services - Professional Fees","130138589","19/10/2016","Governance Services","Democratic Support","R4400"
"Wolverhampton City Council","http://opendatacommunities.org/id/metropolitan-district-council/wolverhampton","The Bigword Interpreting Serv. Limited","INV20151995","48.00","Services - Translation fees","130134382","19/10/2016","Child Protection","CIN/CP Social Work Unit - Area 5","R4406"
"Wolverhampton City Council","http://opendatacommunities.org/id/metropolitan-district-council/wolverhampton","The Bigword Interpreting Serv. Limited","INV20152358","48.00","Services - Translation fees","130134385","19/10/2016","Child Protection","CIN/CP Social Work Unit - Area 5","R4406"
"Wolverhampton City Council","http://opendatacommunities.org/id/metropolitan-district-council/wolverhampton","The Bigword Interpreting Serv. Limited","INV20153874","64.00","Services - Translation fees","130136703","19/10/2016","Child Protection","CIN/CP Social Work Unit - Area 5","R4406"
"Wolverhampton City Council","http://opendatacommunities.org/id/metropolitan-district-council/wolverhampton","The Bigword Interpreting Serv. Limited","INV20153873","64.00","Services - Translation fees","130136702","19/10/2016","Child Protection","CIN/CP Social Work Unit - Area 5","R4406"
"Wolverhampton City Council","http://opendatacommunities.org/id/metropolitan-district-council/wolverhampton","The Bigword Interpreting Serv. Limited","INV20154878","32.00","Services - Translation fees","130138595","19/10/2016","Child Protection","CIN/CP Social Work Unit - Area 8","R4406"
"Wolverhampton City Council","http://opendatacommunities.org/id/metropolitan-district-council/wolverhampton","The Bigword Interpreting Serv. Limited","INV20154820","48.00","Services - Professional Fees","130138433","14/10/2016","Older People Assessment & Care Management","Assessment Team (North)","R4400"
"Wolverhampton City Council","http://opendatacommunities.org/id/metropolitan-district-council/wolverhampton","The Bigword Interpreting Serv. Limited","INV20154780","32.00","Services - Professional Fees","130138259","14/10/2016","Governance Services","Democratic Support","R4400"
"Wolverhampton City Council","http://opendatacommunities.org/id/metropolitan-district-council/wolverhampton","The Bigword Interpreting Serv. Limited","INV20154695","32.00","Services - Professional Fees","130138059","14/10/2016","Governance Services","Democratic Support","R4400"
"Wolverhampton City Council","http://opendatacommunities.org/id/metropolitan-district-council/wolverhampton","The Bigword Interpreting Serv. Limited","INV20154486","32.00","Services - Translation fees","130137899","14/10/2016","Child Protection","CIN/CP S17  SW Unit - Area 3A","R4406"
"Wolverhampton City Council","http://opendatacommunities.org/id/metropolitan-district-council/wolverhampton","The Bigword Interpreting Serv. Limited","INV20154685","32.00","Services - Translation fees","130138254","14/10/2016","Child Protection","CIN/CP S17  SW Unit - Area 3A","R4406"
"Wolverhampton City Council","http://opendatacommunities.org/id/metropolitan-district-council/wolverhampton","The Bigword Interpreting Serv. Limited","INV20154754","72.00","Services - Translation fees","130138256","14/10/2016","Child Protection","CIN/CP S17  SW Unit - Area 3A","R4406"
"Wolverhampton City Council","http://opendatacommunities.org/id/metropolitan-district-council/wolverhampton","The Bigword Interpreting Serv. Limited","INV20154589","32.00","Services - Professional Fees","130137903","14/10/2016","Governance Services","Democratic Support","R4400"
"Wolverhampton City Council","http://opendatacommunities.org/id/metropolitan-district-council/wolverhampton","The Bigword Interpreting Serv. Limited","INV20154579","32.00","Services - Professional Fees","130138058","14/10/2016","Child Protection","CIN/CP Social Work Unit - Area 6","R4400"
"Wolverhampton City Council","http://opendatacommunities.org/id/metropolitan-district-council/wolverhampton","The Bigword Interpreting Serv. Limited","INV20154547","48.00","Services - Translation fees","130138057","14/10/2016","Early Intervention","EIP Locality 5","R4406"
"Wolverhampton City Council","http://opendatacommunities.org/id/metropolitan-district-council/wolverhampton","The Bigword Interpreting Serv. Limited","INV20154830","32.00","Services - Translation fees","130138434","14/10/2016","Early Intervention","EIP Locality 3","R4406"
"Wolverhampton City Council","http://opendatacommunities.org/id/metropolitan-district-council/wolverhampton","The Bigword Interpreting Serv. Limited","INV20154781","32.00","Services - Translation fees","130138260","14/10/2016","Physical Disabilities Assessment","Physical & Sensory Disabilities Management","R4406"
"Wolverhampton City Council","http://opendatacommunities.org/id/metropolitan-district-council/wolverhampton","The Bigword Interpreting Serv. Limited","INV20154779","32.00","Services - Translation fees","130138258","14/10/2016","Older People Assessment & Care Management","Assessment Team (East)","R4406"
"Wolverhampton City Council","http://opendatacommunities.org/id/metropolitan-district-council/wolverhampton","The Bigword Interpreting Serv. Limited","INV20154480","32.00","Services - Translation fees","130137735","14/10/2016","Child Protection","CIN/CP S17  SW Unit - Area 4","R4406"
"Wolverhampton City Council","http://opendatacommunities.org/id/metropolitan-district-council/wolverhampton","The Bigword Interpreting Serv. Limited","INV20154546","32.00","Services - Translation fees","130137900","14/10/2016","Child Protection","CIN/CP S17  SW Unit - Area 4","R4406"
"Wolverhampton City Council","http://opendatacommunities.org/id/metropolitan-district-council/wolverhampton","The Bigword Interpreting Serv. Limited","INV20154551","48.00","Services - Professional Fees","130137901","14/10/2016","Older People Assessment & Care Management","Assessment Team (North)","R4400"
"Wolverhampton City Council","http://opendatacommunities.org/id/metropolitan-district-council/wolverhampton","The Bigword Interpreting Serv. Limited","INV20154419","32.00","Services - Professional Fees","130137578","14/10/2016","Independent Living Service","Independent Living Service","R4400"
"Wolverhampton City Council","http://opendatacommunities.org/id/metropolitan-district-council/wolverhampton","The Bigword Interpreting Serv. Limited","INV20154580","40.00","Services - Translation fees","130137902","14/10/2016","Public Protection","EHTS Operational Costs","R4406"
"Wolverhampton City Council","http://opendatacommunities.org/id/metropolitan-district-council/wolverhampton","The Bigword Interpreting Serv. Limited","INV20154753","32.00","Services - Translation fees","130138255","14/10/2016","Children With Disabilities","Childrens with Disabilities Team","R4406"
"Wolverhampton City Council","http://opendatacommunities.org/id/metropolitan-district-council/wolverhampton","The British Library","139776834","46.60","Books","130139552","26/10/2016","Library Services","Global Budgets","R4309"
"Wolverhampton City Council","http://opendatacommunities.org/id/metropolitan-district-council/wolverhampton","The Columbaria Company T/A Odlings","INV0050343","75.00","Materials","130137449","07/10/2016","Bereavement Services","Cemeteries","R4007"
"Wolverhampton City Council","http://opendatacommunities.org/id/metropolitan-district-council/wolverhampton","The Columbaria Company T/A Odlings","INV0050382","70.00","Materials","130137730","07/10/2016","Bereavement Services","Cemeteries","R4007"
"Wolverhampton City Council","http://opendatacommunities.org/id/metropolitan-district-council/wolverhampton","The Disabled Adaptations Service","15/0412/DFG","333.60","Grants paid out","190272657","05/10/2016","","Disabled Facilities Grants","C5000"
"Wolverhampton City Council","http://opendatacommunities.org/id/metropolitan-district-council/wolverhampton","The Disabled Adaptations Service","15/0409/DFG","473.10","Grants paid out","190279875","26/10/2016","","Disabled Facilities Grants","C5000"
"Wolverhampton City Council","http://opendatacommunities.org/id/metropolitan-district-council/wolverhampton","The Disabled Adaptations Service","14/1251/DFG/2","3,425.52","Grants paid out","190277617","21/10/2016","","Disabled Facilities Grants","C5000"
"Wolverhampton City Council","http://opendatacommunities.org/id/metropolitan-district-council/wolverhampton","The Disabled Adaptations Service","15/0271/DFG","361.50","Grants paid out","190274369","12/10/2016","","Disabled Facilities Grants","C5000"
"Wolverhampton City Council","http://opendatacommunities.org/id/metropolitan-district-council/wolverhampton","The Disabled Adaptations Service","15/0471/DFG","584.30","Grants paid out","190274368","12/10/2016","","Disabled Facilities Grants","C5000"
"Wolverhampton City Council","http://opendatacommunities.org/id/metropolitan-district-council/wolverhampton","The Grafix Workshop","388","1,957.50","R&M - Departmental planned (external)","130138530","28/10/2016","Parking Services","Short Stay - Civic Centre","R2001"
"Wolverhampton City Council","http://opendatacommunities.org/id/metropolitan-district-council/wolverhampton","The Grafix Workshop","388","-1,957.50","R&M - Departmental planned (external)","130138530","28/10/2016","Parking Services","Short Stay - Civic Centre","R2001"
"Wolverhampton City Council","http://opendatacommunities.org/id/metropolitan-district-council/wolverhampton","The Grafix Workshop","388","1,957.50","R&M - Departmental planned (external)","130138530","28/10/2016","Parking Services","Short Stay - Civic Centre","R2001"
"Wolverhampton City Council","http://opendatacommunities.org/id/metropolitan-district-council/wolverhampton","The Grange Residential Home","P127910 13111620161025","1,800.00","TPP - Residential Care - Long Term","190279807","26/10/2016","Older People Assessment & Care Management","OP Care Purchasing (Spot Placements)","R5400"
"Wolverhampton City Council","http://opendatacommunities.org/id/metropolitan-district-council/wolverhampton","The Headset Company UK Limited","4049395","537.95","Equipment - Purchase","130138170","14/10/2016","Customer Services","City Direct","R4000"
"Wolverhampton City Council","http://opendatacommunities.org/id/metropolitan-district-council/wolverhampton","The Helping Hand Company","279101","150.00","Equipment - Purchase","130139343","26/10/2016","Independent Living Service","Independent Living Service","R4000"
"Wolverhampton City Council","http://opendatacommunities.org/id/metropolitan-district-council/wolverhampton","The Helping Hand Company","273390","452.00","Materials","130140626","12/10/2016","Environmental Maintenance","Ground Maintenance East","R4007"
"Wolverhampton City Council","http://opendatacommunities.org/id/metropolitan-district-council/wolverhampton","The Helping Hand Company","277807","505.00","Equipment - Purchase","130137251","19/10/2016","Independent Living Service","Independent Living Service","R4000"
"Wolverhampton City Council","http://opendatacommunities.org/id/metropolitan-district-council/wolverhampton","The Marlowe School","2148431","2,857.16","TPP - Alternative Provision of Education","130138941","05/10/2016","Looked After Children","Out of City - Pooled Budget","R5037"
"Wolverhampton City Council","http://opendatacommunities.org/id/metropolitan-district-council/wolverhampton","The Potters Connection Limited","144507","290.21","Equipment - Purchase","130136374","12/10/2016","Adult Education","Creative Studies Delivery Area","R4000"
"Wolverhampton City Council","http://opendatacommunities.org/id/metropolitan-district-council/wolverhampton","The Potters Connection Limited","144507","60.00","Comms - Postage","130136374","12/10/2016","Adult Education","Creative Studies Delivery Area","R4503"
"Wolverhampton City Council","http://opendatacommunities.org/id/metropolitan-district-council/wolverhampton","The Potters Connection Limited","144506","41.27","Equipment - Purchase","130136373","12/10/2016","Adult Education","Creative Studies Delivery Area","R4000"
"Wolverhampton City Council","http://opendatacommunities.org/id/metropolitan-district-council/wolverhampton","The Queen Victoria Hotel","00116","105.00","Accommodation Costs","130137174","28/10/2016","Housing","Homeless Families","R4900"
"Wolverhampton City Council","http://opendatacommunities.org/id/metropolitan-district-council/wolverhampton","The Queen Victoria Hotel","00116","-105.00","Accommodation Costs","130137174","28/10/2016","Housing","Homeless Families","R4900"
"Wolverhampton City Council","http://opendatacommunities.org/id/metropolitan-district-council/wolverhampton","The Queen Victoria Hotel","00116","105.00","Accommodation Costs","130137174","28/10/2016","Housing","Homeless Families","R4900"
"Wolverhampton City Council","http://opendatacommunities.org/id/metropolitan-district-council/wolverhampton","The Royal Wolverhampton Hospitals","0000196004","1,776.00","TPP - Public Health Contracts","130135775","07/10/2016","Contracts","Alcohol and Drug","R5060"
"Wolverhampton City Council","http://opendatacommunities.org/id/metropolitan-district-council/wolverhampton","The Royal Wolverhampton Hospitals","0000189093","5,325.89","TPP - Nursing Care - Long Term","130137631","07/10/2016","Older People Assessment & Care Management","OP Care Purchasing (Spot Placements)","R5410"
"Wolverhampton City Council","http://opendatacommunities.org/id/metropolitan-district-council/wolverhampton","The Royal Wolverhampton Hospitals","0000189884","4,871.55","TPP - Nursing Care - Long Term","130137632","07/10/2016","Older People Assessment & Care Management","OP Care Purchasing (Spot Placements)","R5410"
"Wolverhampton City Council","http://opendatacommunities.org/id/metropolitan-district-council/wolverhampton","The Royal Wolverhampton Hospitals","0000195172","214,396.00","TPP - Public Health Contracts","130132009","07/10/2016","Contracts","Sexual Health","R5060"
"Wolverhampton City Council","http://opendatacommunities.org/id/metropolitan-district-council/wolverhampton","The Royal Wolverhampton Hospitals","0000196056","214,396.00","TPP - Public Health Contracts","130135780","07/10/2016","Contracts","Sexual Health","R5060"
"Wolverhampton City Council","http://opendatacommunities.org/id/metropolitan-district-council/wolverhampton","The Royal Wolverhampton Hospitals","0000189092","14,153.59","TPP - Nursing Care - Long Term","130137630","07/10/2016","Older People Assessment & Care Management","OP Care Purchasing (Spot Placements)","R5410"
"Wolverhampton City Council","http://opendatacommunities.org/id/metropolitan-district-council/wolverhampton","The Royal Wolverhampton Hospitals","0000187025","20,472.00","TPP - Nursing Care - Long Term","130137628","07/10/2016","Older People Assessment & Care Management","OP Care Purchasing (Spot Placements)","R5410"
"Wolverhampton City Council","http://opendatacommunities.org/id/metropolitan-district-council/wolverhampton","The Royal Wolverhampton Hospitals","0000182592","19,715.51","TPP - Nursing Care - Long Term","130137624","07/10/2016","Older People Assessment & Care Management","OP Care Purchasing (Spot Placements)","R5410"
"Wolverhampton City Council","http://opendatacommunities.org/id/metropolitan-district-council/wolverhampton","The Royal Wolverhampton Hospitals","0000187653","31,696.00","TPP - Nursing Care - Long Term","130137629","07/10/2016","Older People Assessment & Care Management","OP Care Purchasing (Spot Placements)","R5410"
"Wolverhampton City Council","http://opendatacommunities.org/id/metropolitan-district-council/wolverhampton","The Royal Wolverhampton Hospitals","0000186205","9,533.00","TPP - Nursing Care - Long Term","130137627","07/10/2016","Older People Assessment & Care Management","OP Care Purchasing (Spot Placements)","R5410"
"Wolverhampton City Council","http://opendatacommunities.org/id/metropolitan-district-council/wolverhampton","The Royal Wolverhampton Hospitals","0000184985","8,851.00","TPP - Nursing Care - Long Term","130137626","07/10/2016","Older People Assessment & Care Management","OP Care Purchasing (Spot Placements)","R5410"
"Wolverhampton City Council","http://opendatacommunities.org/id/metropolitan-district-council/wolverhampton","The Royal Wolverhampton Hospitals","0000183789","15,369.00","TPP - Nursing Care - Long Term","130137625","07/10/2016","Older People Assessment & Care Management","OP Care Purchasing (Spot Placements)","R5410"
"Wolverhampton City Council","http://opendatacommunities.org/id/metropolitan-district-council/wolverhampton","The Royal Wolverhampton Hospitals","NXP008000","49.60","Parking Fees","130139984","26/10/2016","Welfare Rights & Financial Assessment","Macmillan Welfare Rights Service","R3410"
"Wolverhampton City Council","http://opendatacommunities.org/id/metropolitan-district-council/wolverhampton","The Royal Wolverhampton Hospitals","NXP007111","30.60","Parking Fees","130139982","26/10/2016","Welfare Rights & Financial Assessment","Macmillan Welfare Rights Service","R3410"
"Wolverhampton City Council","http://opendatacommunities.org/id/metropolitan-district-council/wolverhampton","The Royal Wolverhampton Hospitals","NXP007987","8.90","Parking Fees","130141296","26/10/2016","Welfare Rights & Financial Assessment","Welfare Rights","R3410"
"Wolverhampton City Council","http://opendatacommunities.org/id/metropolitan-district-council/wolverhampton","The Royal Wolverhampton Hospitals","0000197034","2,443.33","TPP - Payments to Local Authorities","130139787","26/10/2016","Older People Assessment & Care Management","Hospital Team","R5100"
"Wolverhampton City Council","http://opendatacommunities.org/id/metropolitan-district-council/wolverhampton","The Royal Wolverhampton Hospitals","0000196007","2,497.00","TPP - Public Health Contracts","130135776","21/10/2016","Contracts","Healthy Start to Life","R5060"
"Wolverhampton City Council","http://opendatacommunities.org/id/metropolitan-district-council/wolverhampton","The Royal Wolverhampton Hospitals","0000196007","-2,497.00","TPP - Public Health Contracts","130135776","21/10/2016","Contracts","Healthy Start to Life","R5060"
"Wolverhampton City Council","http://opendatacommunities.org/id/metropolitan-district-council/wolverhampton","The Royal Wolverhampton Hospitals","0000196007","2,497.00","TPP - Public Health Contracts","130135776","21/10/2016","Contracts","Healthy Start to Life","R5060"
"Wolverhampton City Council","http://opendatacommunities.org/id/metropolitan-district-council/wolverhampton","The Royal Wolverhampton School","P128093 16101620161021","3,728.75","TPP - Residential Care - Long Term","190277740","26/10/2016","Looked After Children","Out of City Placements","R5400"
"Wolverhampton City Council","http://opendatacommunities.org/id/metropolitan-district-council/wolverhampton","The Royal Wolverhampton School","P128093 16101620161021","3,728.75","TPP - Residential Care - Long Term","190277740","26/10/2016","Looked After Children","Out of City Placements","R5400"
"Wolverhampton City Council","http://opendatacommunities.org/id/metropolitan-district-council/wolverhampton","The Royal Wolverhampton School","P128093 16101620161021","3,745.41","TPP - Residential Care - Long Term","190277740","26/10/2016","Looked After Children","Out of City Placements","R5400"
"Wolverhampton City Council","http://opendatacommunities.org/id/metropolitan-district-council/wolverhampton","The Terrence Higgins Trust","27002240","8,332.50","TPP - Home Care","130139874","26/10/2016","Joint Commissioning Younger Adults","Terence Higgins Trust","R5420"
"Wolverhampton City Council","http://opendatacommunities.org/id/metropolitan-district-council/wolverhampton","The Terrence Higgins Trust","27002237","8,332.50","TPP - Home Care","130135474","19/10/2016","Joint Commissioning Younger Adults","Terence Higgins Trust","R5420"
"Wolverhampton City Council","http://opendatacommunities.org/id/metropolitan-district-council/wolverhampton","Thompson Avc Limited","31139","4,820.00","Computing - Purchase of Hardware","130139583","12/10/2016","ICTS","Strategic ICTS (ICT Service Budget)","R4530"
"Wolverhampton City Council","http://opendatacommunities.org/id/metropolitan-district-council/wolverhampton","Thompson Avc Limited","31288","356.18","R&M - Departmental planned (external)","130140643","14/10/2016","Facilities Management","Civic Centre","R2001"
"Wolverhampton City Council","http://opendatacommunities.org/id/metropolitan-district-council/wolverhampton","Thornes Legal Limited","GAT/DJM/BRO352/1","215.00","Services - Professional Fees","190278886","26/10/2016","Legal Services","Centralised External Legal Costs","R4400"
"Wolverhampton City Council","http://opendatacommunities.org/id/metropolitan-district-council/wolverhampton","Thornes Legal Limited","004920/1","170.00","Services - Professional Fees","190278885","26/10/2016","Legal Services","Centralised External Legal Costs","R4400"
"Wolverhampton City Council","http://opendatacommunities.org/id/metropolitan-district-council/wolverhampton","Thornes Legal Limited","004920","416.66","Services - Professional Fees","190278884","26/10/2016","Legal Services","Centralised External Legal Costs","R4400"
"Wolverhampton City Council","http://opendatacommunities.org/id/metropolitan-district-council/wolverhampton","Thornes Legal Limited","004937","1,055.83","Services - Professional Fees","190277607","21/10/2016","Legal Services","Centralised External Legal Costs","R4400"
"Wolverhampton City Council","http://opendatacommunities.org/id/metropolitan-district-council/wolverhampton","Thornes Legal Limited","GAT/SWI44/1","1,083.34","Services - Professional Fees","190277608","21/10/2016","Legal Services","Centralised External Legal Costs","R4400"
"Wolverhampton City Council","http://opendatacommunities.org/id/metropolitan-district-council/wolverhampton","Thornes Legal Limited","004850","1,500.00","Services - Professional Fees","190277609","21/10/2016","Legal Services","Centralised External Legal Costs","R4400"
"Wolverhampton City Council","http://opendatacommunities.org/id/metropolitan-district-council/wolverhampton","Thornes Legal Limited","004950","1,722.69","Services - Professional Fees","190277606","21/10/2016","Legal Services","Centralised External Legal Costs","R4400"
"Wolverhampton City Council","http://opendatacommunities.org/id/metropolitan-district-council/wolverhampton","Thornes Legal Limited","GAT/ASP7/1","1,243.97","Services - Professional Fees","190277611","21/10/2016","Legal Services","Centralised External Legal Costs","R4400"
"Wolverhampton City Council","http://opendatacommunities.org/id/metropolitan-district-council/wolverhampton","Thornes Legal Limited","004850-1","215.00","Services - Professional Fees","190277610","21/10/2016","Legal Services","Centralised External Legal Costs","R4400"
"Wolverhampton City Council","http://opendatacommunities.org/id/metropolitan-district-council/wolverhampton","Thornes Legal Limited","GAT/ASP7/1-1","378.16","Services - Professional Fees","190277612","21/10/2016","Legal Services","Centralised External Legal Costs","R4400"
"Wolverhampton City Council","http://opendatacommunities.org/id/metropolitan-district-council/wolverhampton","Thornley St Surgery","M2016Q215HL1IPRQ","32.00","TPP - Public Health Contracts","190278957","26/10/2016","Contracts","Healthy Lifestyles","R5060"
"Wolverhampton City Council","http://opendatacommunities.org/id/metropolitan-district-council/wolverhampton","Thornley St Surgery","M2016Q115HL312TQ/7/NT/CN","-226.00","TPP - Public Health Contracts","190278352","26/10/2016","Contracts","Healthy Lifestyles","R5060"
"Wolverhampton City Council","http://opendatacommunities.org/id/metropolitan-district-council/wolverhampton","Thornley St Surgery","M2016Q215HL1IHCQ","9.20","TPP - Public Health Contracts","190278956","26/10/2016","Contracts","Healthy Lifestyles","R5060"
"Wolverhampton City Council","http://opendatacommunities.org/id/metropolitan-district-council/wolverhampton","Thornley St Surgery","M2016Q215SHCIFBQ","306.35","TPP - Public Health Contracts","190278952","26/10/2016","Contracts","Sexual Health","R5060"
"Wolverhampton City Council","http://opendatacommunities.org/id/metropolitan-district-council/wolverhampton","Thornley St Surgery","M2016Q215SHIUFRQ","431.40","TPP - Public Health Contracts","190278954","26/10/2016","Contracts","Sexual Health","R5060"
"Wolverhampton City Council","http://opendatacommunities.org/id/metropolitan-district-council/wolverhampton","Thornley St Surgery","M2016Q215SHCIFRQ","413.64","TPP - Public Health Contracts","190278951","26/10/2016","Contracts","Sexual Health","R5060"
"Wolverhampton City Council","http://opendatacommunities.org/id/metropolitan-district-council/wolverhampton","Thornley St Surgery","M2016Q215SHCHLAQ","60.00","TPP - Public Health Contracts","190278955","26/10/2016","Contracts","Sexual Health","R5060"
"Wolverhampton City Council","http://opendatacommunities.org/id/metropolitan-district-council/wolverhampton","Thornley St Surgery","M2016Q215HL304TQ","5.00","TPP - Public Health Contracts","190278958","26/10/2016","Contracts","Healthy Lifestyles","R5060"
"Wolverhampton City Council","http://opendatacommunities.org/id/metropolitan-district-council/wolverhampton","Thornley St Surgery","M2016Q215HL312TQ","45.00","TPP - Public Health Contracts","190278959","26/10/2016","Contracts","Healthy Lifestyles","R5060"
"Wolverhampton City Council","http://opendatacommunities.org/id/metropolitan-district-council/wolverhampton","Thornley St Surgery","M2016Q215SHCIFIQ","735.36","TPP - Public Health Contracts","190278950","26/10/2016","Contracts","Sexual Health","R5060"
"Wolverhampton City Council","http://opendatacommunities.org/id/metropolitan-district-council/wolverhampton","Thornley St Surgery","M2016Q215SHIUDFQ","671.16","TPP - Public Health Contracts","190278953","26/10/2016","Contracts","Sexual Health","R5060"
"Wolverhampton City Council","http://opendatacommunities.org/id/metropolitan-district-council/wolverhampton","Thorpe Mill Limited","42388","1,500.00","Equipment - Purchase","130140261","28/10/2016","Independent Living Service","Independent Living Service","R4000"
"Wolverhampton City Council","http://opendatacommunities.org/id/metropolitan-district-council/wolverhampton","Time Right Limited","S1N049602","60.00","Services - Fees and Charges","130140860","26/10/2016","Environmental Maintenance","Ground Maintenance East","R4401"
"Wolverhampton City Council","http://opendatacommunities.org/id/metropolitan-district-council/wolverhampton","Timeplan Fuel Solutions Limited","7174","195.00","Equipment - R & M","190274691","12/10/2016","Fleet Services","Fleet Management","R4003"
"Wolverhampton City Council","http://opendatacommunities.org/id/metropolitan-district-council/wolverhampton","Timeplan Fuel Solutions Limited","7174","319.00","Equipment - R & M","190274691","12/10/2016","Fleet Services","Fleet Management","R4003"
"Wolverhampton City Council","http://opendatacommunities.org/id/metropolitan-district-council/wolverhampton","TES Global Ltd","TARINV/15440759","690.37","Staff Advertising Costs","130139058","14/10/2016","The Hub","Central Advertising","R1700"
"Wolverhampton City Council","http://opendatacommunities.org/id/metropolitan-district-council/wolverhampton","TES Global Ltd","TARINV/15440866","690.37","Staff Advertising Costs","130139188","14/10/2016","The Hub","Central Advertising","R1700"
"Wolverhampton City Council","http://opendatacommunities.org/id/metropolitan-district-council/wolverhampton","Tlc College","0101","2,398.63","Room Hire","130137472","07/10/2016","Adult Education","Community - TLC College","R2201"
"Wolverhampton City Council","http://opendatacommunities.org/id/metropolitan-district-council/wolverhampton","Tlc College","0100","1,937.68","Room Hire","130137365","07/10/2016","Adult Education","Community - TLC College","R2201"
"Wolverhampton City Council","http://opendatacommunities.org/id/metropolitan-district-council/wolverhampton","Tlc College Neighbourhood Nursery","173","96.25","TPP - Private Nursery Education Funding","130140240","12/10/2016","Child Protection","CIN/CP S17  SW Unit - Area 5","R5035"
"Wolverhampton City Council","http://opendatacommunities.org/id/metropolitan-district-council/wolverhampton","Tlc College Neighbourhood Nursery","5039","204.05","TPP - Private Nursery Education Funding","130140274","12/10/2016","Child Protection","CIN/CP S17  SW Unit - Area 5","R5035"
"Wolverhampton City Council","http://opendatacommunities.org/id/metropolitan-district-council/wolverhampton","Tlc College Neighbourhood Nursery","172","53.40","TPP - Private Nursery Education Funding","130140239","12/10/2016","Child Protection","CIN/CP S17  SW Unit - Area 5","R5035"
"Wolverhampton City Council","http://opendatacommunities.org/id/metropolitan-district-council/wolverhampton","Tony Davies & Partner Llp","4821/16AFP","1,843.08","R&M - Departmental planned (external)","130140271","12/10/2016","Environmental Maintenance","Parks / Open Spaces - Repairs & Maintenance","R2001"
"Wolverhampton City Council","http://opendatacommunities.org/id/metropolitan-district-council/wolverhampton","Tony Davies & Partner Llp","4822/16AFP","1,942.23","R&M - Departmental response (external)","130140272","12/10/2016","Environmental Maintenance","Parks - East Area Management","R2003"
"Wolverhampton City Council","http://opendatacommunities.org/id/metropolitan-district-council/wolverhampton","Tony Davies & Partner Llp","4820/16AFP","1,967.20","R&M - Departmental response (external)","130140270","19/10/2016","Environmental Maintenance","Parks - South West Area Management","R2003"
"Wolverhampton City Council","http://opendatacommunities.org/id/metropolitan-district-council/wolverhampton","Tony Davies & Partner Llp","4823/16AFP","1,249.63","R&M - Departmental response (external)","130140551","19/10/2016","Environmental Maintenance","Parks - East Area Management","R2003"
"Wolverhampton City Council","http://opendatacommunities.org/id/metropolitan-district-council/wolverhampton","Total Gas & Power Limited","137310343","187.12","Gas","190277250","21/10/2016","Corporate Asset Management","Central Utilities to Recharge","R2101"
"Wolverhampton City Council","http://opendatacommunities.org/id/metropolitan-district-council/wolverhampton","Total Gas & Power Limited","137521224","198.89","Gas","190276154","19/10/2016","Schools","St Patrick�s Catholic Primary School","R2101"
"Wolverhampton City Council","http://opendatacommunities.org/id/metropolitan-district-council/wolverhampton","Total Gas & Power Limited","137535029","173.01","Gas","190276156","19/10/2016","Schools","Holy Trinity Catholic Primary School","R2101"
"Wolverhampton City Council","http://opendatacommunities.org/id/metropolitan-district-council/wolverhampton","Total Gas & Power Limited","137535084","49.61","Gas","190276157","19/10/2016","Schools","Bushbury Nursery","R2101"
"Wolverhampton City Council","http://opendatacommunities.org/id/metropolitan-district-council/wolverhampton","Total Gas & Power Limited","137535161","38.47","Gas","190276160","19/10/2016","Schools","Christ Church (Tettenhall Wood) Infant School","R2101"
"Wolverhampton City Council","http://opendatacommunities.org/id/metropolitan-district-council/wolverhampton","Total Gas & Power Limited","137535227","42.02","Gas","190276163","19/10/2016","Schools","Phoenix Nursery","R2101"
"Wolverhampton City Council","http://opendatacommunities.org/id/metropolitan-district-council/wolverhampton","Total Gas & Power Limited","137535018","146.72","Gas","190276155","19/10/2016","Schools","Whitgreave Infant School","R2101"
"Wolverhampton City Council","http://opendatacommunities.org/id/metropolitan-district-council/wolverhampton","Total Gas & Power Limited","137521037","140.92","Gas","190276153","19/10/2016","Schools","Villiers Primary School","R2101"
"Wolverhampton City Council","http://opendatacommunities.org/id/metropolitan-district-council/wolverhampton","Total Gas & Power Limited","137520894","140.39","Gas","190276151","19/10/2016","Schools","Wodensfield Primary School","R2101"
"Wolverhampton City Council","http://opendatacommunities.org/id/metropolitan-district-council/wolverhampton","Total Gas & Power Limited","137535128","45.68","Gas","190276158","19/10/2016","Schools","Trinity Church of England Primary School","R2101"
"Wolverhampton City Council","http://opendatacommunities.org/id/metropolitan-district-council/wolverhampton","Total Gas & Power Limited","137521026","162.84","Gas","190276152","19/10/2016","Schools","Bilston Nursery","R2101"
"Wolverhampton City Council","http://opendatacommunities.org/id/metropolitan-district-council/wolverhampton","Total Gas & Power Limited","137535172","75.01","Gas","190276161","19/10/2016","Schools","Christ Church (Tettenhall Wood) Infant School","R2101"
"Wolverhampton City Council","http://opendatacommunities.org/id/metropolitan-district-council/wolverhampton","Total Gas & Power Limited","137520872","119.12","Gas","190276150","19/10/2016","Schools","St Anthony�s Catholic Primary School","R2101"
"Wolverhampton City Council","http://opendatacommunities.org/id/metropolitan-district-council/wolverhampton","Total Gas & Power Limited","137535250","42.55","Gas","190276164","19/10/2016","Schools","Eastfield Nursery","R2101"
"Wolverhampton City Council","http://opendatacommunities.org/id/metropolitan-district-council/wolverhampton","Total Gas & Power Limited","137535216","52.11","Gas","190276162","19/10/2016","Schools","Merridale Primary School","R2101"
"Wolverhampton City Council","http://opendatacommunities.org/id/metropolitan-district-council/wolverhampton","Total Gas & Power Limited","137535139","54.78","Gas","190276159","19/10/2016","Schools","Wodensfield Primary School","R2101"
"Wolverhampton City Council","http://opendatacommunities.org/id/metropolitan-district-council/wolverhampton","Total Gas & Power Limited","137520443","215.42","Gas","190276139","19/10/2016","Schools","Bilston Church of England Primary School","R2101"
"Wolverhampton City Council","http://opendatacommunities.org/id/metropolitan-district-council/wolverhampton","Total Gas & Power Limited","137520641","123.10","Gas","190276144","19/10/2016","Schools","Loxdale Primary School","R2101"
"Wolverhampton City Council","http://opendatacommunities.org/id/metropolitan-district-council/wolverhampton","Total Gas & Power Limited","137520850","121.33","Gas","190276149","19/10/2016","Schools","St Michael�s Church of England Primary School","R2101"
"Wolverhampton City Council","http://opendatacommunities.org/id/metropolitan-district-council/wolverhampton","Total Gas & Power Limited","137520465","218.39","Gas","190276140","19/10/2016","Schools","St Paul�s Church of England (Aided) School","R2101"
"Wolverhampton City Council","http://opendatacommunities.org/id/metropolitan-district-council/wolverhampton","Total Gas & Power Limited","137520729","559.70","Gas","190276148","19/10/2016","Schools","St Andrews Church of England Primary School","R2101"
"Wolverhampton City Council","http://opendatacommunities.org/id/metropolitan-district-council/wolverhampton","Total Gas & Power Limited","137520707","374.85","Gas","190276146","19/10/2016","Schools","St Stephen�s Church of England Primary School","R2101"
"Wolverhampton City Council","http://opendatacommunities.org/id/metropolitan-district-council/wolverhampton","Total Gas & Power Limited","TOTAL GP-126a","11,495.69","Gas","190276133","19/10/2016","Corporate Asset Management","Central Utilities to Recharge","R2101"
"Wolverhampton City Council","http://opendatacommunities.org/id/metropolitan-district-council/wolverhampton","Total Gas & Power Limited","136005325C","-138.86","Gas","190276141","19/10/2016","Schools","St Bartholomew�s Church of England Primary School","R2101"
"Wolverhampton City Council","http://opendatacommunities.org/id/metropolitan-district-council/wolverhampton","Total Gas & Power Limited","TOTAL GP-126b","25,879.49","Gas","190276134","19/10/2016","Corporate Asset Management","Central Utilities to Recharge","R2101"
"Wolverhampton City Council","http://opendatacommunities.org/id/metropolitan-district-council/wolverhampton","Total Gas & Power Limited","137904222","138.86","Gas","190276142","19/10/2016","Schools","St Bartholomew�s Church of England Primary School","R2101"
"Wolverhampton City Council","http://opendatacommunities.org/id/metropolitan-district-council/wolverhampton","Total Gas & Power Limited","137520432","145.26","Gas","190276138","19/10/2016","Schools","St Thomas� Church of England Primary School","R2101"
"Wolverhampton City Council","http://opendatacommunities.org/id/metropolitan-district-council/wolverhampton","Total Gas & Power Limited","137535337","41.13","Gas","190276166","19/10/2016","Schools","Fallings Park Primary School","R2101"
"Wolverhampton City Council","http://opendatacommunities.org/id/metropolitan-district-council/wolverhampton","Total Gas & Power Limited","137535425","45.88","Gas","190276167","19/10/2016","Schools","Hill Avenue Primary School","R2101"
"Wolverhampton City Council","http://opendatacommunities.org/id/metropolitan-district-council/wolverhampton","Total Gas & Power Limited","137520718","2,151.19","Gas","190276147","19/10/2016","Schools","Colton Hills Community School","R2101"
"Wolverhampton City Council","http://opendatacommunities.org/id/metropolitan-district-council/wolverhampton","Total Gas & Power Limited","137520696","303.54","Gas","190276145","19/10/2016","Schools","Trinity Church of England Primary School","R2101"
"Wolverhampton City Council","http://opendatacommunities.org/id/metropolitan-district-council/wolverhampton","Total Gas & Power Limited","137520608","153.24","Gas","190276143","19/10/2016","Schools","Uplands Junior School","R2101"
"Wolverhampton City Council","http://opendatacommunities.org/id/metropolitan-district-council/wolverhampton","Total Gas & Power Limited","137535315","46.97","Gas","190276165","19/10/2016","Schools","Ashmore Park Nursery","R2101"
"Wolverhampton City Council","http://opendatacommunities.org/id/metropolitan-district-council/wolverhampton","Total Gas & Power Limited","137520399","186.62","Gas","190276136","19/10/2016","Schools","Christ Church (Church of England) Junior School","R2101"
"Wolverhampton City Council","http://opendatacommunities.org/id/metropolitan-district-council/wolverhampton","Total Gas & Power Limited","137520410","172.38","Gas","190276137","19/10/2016","Schools","Springvale Primary School","R2101"
"Wolverhampton City Council","http://opendatacommunities.org/id/metropolitan-district-council/wolverhampton","Total Gas & Power Limited","137520377","825.93","Gas","190276135","19/10/2016","Schools","Moreton Community School","R2101"
"Wolverhampton City Council","http://opendatacommunities.org/id/metropolitan-district-council/wolverhampton","Total Gas & Power Limited","137535634","152.20","Gas","190276179","19/10/2016","Schools","Deansfield High School","R2101"
"Wolverhampton City Council","http://opendatacommunities.org/id/metropolitan-district-council/wolverhampton","Total Gas & Power Limited","137535755","48.35","Gas","190276187","19/10/2016","Schools","Whitgreave Infant School","R2101"
"Wolverhampton City Council","http://opendatacommunities.org/id/metropolitan-district-council/wolverhampton","Total Gas & Power Limited","130411385C","-360.01","Gas","190276173","19/10/2016","Schools","St Luke�s Church of England Aided Primary School","R2101"
"Wolverhampton City Council","http://opendatacommunities.org/id/metropolitan-district-council/wolverhampton","Total Gas & Power Limited","137535744","38.47","Gas","190276186","19/10/2016","Schools","Castlecroft Primary School","R2101"
"Wolverhampton City Council","http://opendatacommunities.org/id/metropolitan-district-council/wolverhampton","Total Gas & Power Limited","137535722","42.02","Gas","190276184","19/10/2016","Schools","Penn Hall Special School","R2101"
"Wolverhampton City Council","http://opendatacommunities.org/id/metropolitan-district-council/wolverhampton","Total Gas & Power Limited","137535524","145.45","Gas","190276176","19/10/2016","Schools","St Alban�s Church of England Primary School","R2101"
"Wolverhampton City Council","http://opendatacommunities.org/id/metropolitan-district-council/wolverhampton","Total Gas & Power Limited","131514894C","-222.17","Gas","190276169","19/10/2016","Schools","St Luke�s Church of England Aided Primary School","R2101"
"Wolverhampton City Council","http://opendatacommunities.org/id/metropolitan-district-council/wolverhampton","Total Gas & Power Limited","133123974C","-142.60","Gas","190276174","19/10/2016","Schools","St Luke�s Church of England Aided Primary School","R2101"
"Wolverhampton City Council","http://opendatacommunities.org/id/metropolitan-district-council/wolverhampton","Total Gas & Power Limited","136005105C","-127.57","Gas","190276171","19/10/2016","Schools","St Luke�s Church of England Aided Primary School","R2101"
"Wolverhampton City Council","http://opendatacommunities.org/id/metropolitan-district-council/wolverhampton","Total Gas & Power Limited","134638510C","-130.95","Gas","190276172","19/10/2016","Schools","St Luke�s Church of England Aided Primary School","R2101"
"Wolverhampton City Council","http://opendatacommunities.org/id/metropolitan-district-council/wolverhampton","Total Gas & Power Limited","137535733","167.06","Gas","190276185","19/10/2016","Schools","Penn Hall Special School","R2101"
"Wolverhampton City Council","http://opendatacommunities.org/id/metropolitan-district-council/wolverhampton","Total Gas & Power Limited","137535711","41.13","Gas","190276183","19/10/2016","Schools","Penn Hall Special School","R2101"
"Wolverhampton City Council","http://opendatacommunities.org/id/metropolitan-district-council/wolverhampton","Total Gas & Power Limited","137535700","44.69","Gas","190276182","19/10/2016","Schools","Penn Hall Special School","R2101"
"Wolverhampton City Council","http://opendatacommunities.org/id/metropolitan-district-council/wolverhampton","Total Gas & Power Limited","137535656","137.18","Gas","190276180","19/10/2016","Schools","Bushbury Hill Primary School","R2101"
"Wolverhampton City Council","http://opendatacommunities.org/id/metropolitan-district-council/wolverhampton","Total Gas & Power Limited","137535612","33.48","Gas","190276178","19/10/2016","Schools","Wilkinson Primary School","R2101"
"Wolverhampton City Council","http://opendatacommunities.org/id/metropolitan-district-council/wolverhampton","Total Gas & Power Limited","137520366","125.61","Gas","190276168","19/10/2016","Schools","St Luke�s Church of England Aided Primary School","R2101"
"Wolverhampton City Council","http://opendatacommunities.org/id/metropolitan-district-council/wolverhampton","Total Gas & Power Limited","137535667","124.81","Gas","190276181","19/10/2016","Schools","Oak Meadow Primary School","R2101"
"Wolverhampton City Council","http://opendatacommunities.org/id/metropolitan-district-council/wolverhampton","Total Gas & Power Limited","136765051","553.09","Gas","190276170","19/10/2016","Schools","St Luke�s Church of England Aided Primary School","R2101"
"Wolverhampton City Council","http://opendatacommunities.org/id/metropolitan-district-council/wolverhampton","Total Gas & Power Limited","137520333","25.80","Gas","190276175","19/10/2016","Schools","Low Hill Nursery","R2101"
"Wolverhampton City Council","http://opendatacommunities.org/id/metropolitan-district-council/wolverhampton","Total Gas & Power Limited","137535601","337.42","Gas","190276177","19/10/2016","Schools","Bantock Primary School","R2101"
"Wolverhampton City Council","http://opendatacommunities.org/id/metropolitan-district-council/wolverhampton","Total Gas & Power Limited","137535909","53.06","Gas","190276194","19/10/2016","Schools","Long Knowle Primary School","R2101"
"Wolverhampton City Council","http://opendatacommunities.org/id/metropolitan-district-council/wolverhampton","Total Gas & Power Limited","137535777","52.43","Gas","190276188","19/10/2016","Schools","Christ Church (Church of England) Junior School","R2101"
"Wolverhampton City Council","http://opendatacommunities.org/id/metropolitan-district-council/wolverhampton","Total Gas & Power Limited","137907610","39.75","Gas","190276207","19/10/2016","Schools","St Bartholomew�s Church of England Primary School","R2101"
"Wolverhampton City Council","http://opendatacommunities.org/id/metropolitan-district-council/wolverhampton","Total Gas & Power Limited","137535964","116.90","Gas","190276198","19/10/2016","Schools","St Stephen�s Church of England Primary School","R2101"
"Wolverhampton City Council","http://opendatacommunities.org/id/metropolitan-district-council/wolverhampton","Total Gas & Power Limited","136051525C","-39.75","Gas","190276206","19/10/2016","Schools","St Bartholomew�s Church of England Primary School","R2101"
"Wolverhampton City Council","http://opendatacommunities.org/id/metropolitan-district-council/wolverhampton","Total Gas & Power Limited","137536008","75.78","Gas","190276201","19/10/2016","Schools","St Patrick�s Catholic Primary School","R2101"
"Wolverhampton City Council","http://opendatacommunities.org/id/metropolitan-district-council/wolverhampton","Total Gas & Power Limited","137535931","59.49","Gas","190276196","19/10/2016","Schools","Wodensfield Primary School","R2101"
"Wolverhampton City Council","http://opendatacommunities.org/id/metropolitan-district-council/wolverhampton","Total Gas & Power Limited","137535800","60.90","Gas","190276190","19/10/2016","Schools","Stowheath Primary School","R2101"
"Wolverhampton City Council","http://opendatacommunities.org/id/metropolitan-district-council/wolverhampton","Total Gas & Power Limited","137535832","65.45","Gas","190276191","19/10/2016","Schools","Loxdale Primary School","R2101"
"Wolverhampton City Council","http://opendatacommunities.org/id/metropolitan-district-council/wolverhampton","Total Gas & Power Limited","137535953","43.80","Gas","190276197","19/10/2016","Schools","Oxley Primary School","R2101"
"Wolverhampton City Council","http://opendatacommunities.org/id/metropolitan-district-council/wolverhampton","Total Gas & Power Limited","137535975","45.06","Gas","190276199","19/10/2016","Schools","St Thomas� Church of England Primary School","R2101"
"Wolverhampton City Council","http://opendatacommunities.org/id/metropolitan-district-council/wolverhampton","Total Gas & Power Limited","137536030","162.05","Gas","190276203","19/10/2016","Schools","Fallings Park Primary School","R2101"
"Wolverhampton City Council","http://opendatacommunities.org/id/metropolitan-district-council/wolverhampton","Total Gas & Power Limited","137536019","125.76","Gas","190276202","19/10/2016","Schools","Moreton Community School","R2101"
"Wolverhampton City Council","http://opendatacommunities.org/id/metropolitan-district-council/wolverhampton","Total Gas & Power Limited","137535920","148.37","Gas","190276195","19/10/2016","Schools","Wodensfield Primary School","R2101"
"Wolverhampton City Council","http://opendatacommunities.org/id/metropolitan-district-council/wolverhampton","Total Gas & Power Limited","137535854","148.12","Gas","190276192","19/10/2016","Schools","Woodthorne Primary School","R2101"
"Wolverhampton City Council","http://opendatacommunities.org/id/metropolitan-district-council/wolverhampton","Total Gas & Power Limited","137536041","52.68","Gas","190276204","19/10/2016","Schools","St Anthony�s Catholic Primary School","R2101"
"Wolverhampton City Council","http://opendatacommunities.org/id/metropolitan-district-council/wolverhampton","Total Gas & Power Limited","137536052","52.24","Gas","190276205","19/10/2016","Schools","St Anthony�s Catholic Primary School","R2101"
"Wolverhampton City Council","http://opendatacommunities.org/id/metropolitan-district-council/wolverhampton","Total Gas & Power Limited","137535997","46.47","Gas","190276200","19/10/2016","Schools","St Michael�s Church of England Primary School","R2101"
"Wolverhampton City Council","http://opendatacommunities.org/id/metropolitan-district-council/wolverhampton","Total Gas & Power Limited","137535865","54.90","Gas","190276193","19/10/2016","Schools","Woodthorne Primary School","R2101"
"Wolverhampton City Council","http://opendatacommunities.org/id/metropolitan-district-council/wolverhampton","Total Gas & Power Limited","137535788","63.72","Gas","190276189","19/10/2016","Schools","Merridale Primary School","R2101"
"Wolverhampton City Council","http://opendatacommunities.org/id/metropolitan-district-council/wolverhampton","Total Gas & Power Limited","137536118","46.02","Gas","190276214","19/10/2016","Schools","Claregate Primary School","R2101"
"Wolverhampton City Council","http://opendatacommunities.org/id/metropolitan-district-council/wolverhampton","Total Gas & Power Limited","137494527","48.51","Gas","190276215","19/10/2016","Schools","Deansfield High School","R2101"
"Wolverhampton City Council","http://opendatacommunities.org/id/metropolitan-district-council/wolverhampton","Total Gas & Power Limited","137536085","155.79","Gas","190276212","19/10/2016","Schools","St Andrews Church of England Primary School","R2101"
"Wolverhampton City Council","http://opendatacommunities.org/id/metropolitan-district-council/wolverhampton","Total Gas & Power Limited","137520509","581.09","Gas","190276227","19/10/2016","Schools","Penn Hall Special School","R2101"
"Wolverhampton City Council","http://opendatacommunities.org/id/metropolitan-district-council/wolverhampton","Total Gas & Power Limited","137536074","171.41","Gas","190276211","19/10/2016","Schools","St Andrews Church of England Primary School","R2101"
"Wolverhampton City Council","http://opendatacommunities.org/id/metropolitan-district-council/wolverhampton","Total Gas & Power Limited","137494637","148.59","Gas","190276220","19/10/2016","Schools","Trinity Church of England Primary School","R2101"
"Wolverhampton City Council","http://opendatacommunities.org/id/metropolitan-district-council/wolverhampton","Total Gas & Power Limited","137907621","151.04","Gas","190276209","19/10/2016","Schools","St Bartholomew�s Church of England Primary School","R2101"
"Wolverhampton City Council","http://opendatacommunities.org/id/metropolitan-district-council/wolverhampton","Total Gas & Power Limited","137535414","41.64","Gas","190276222","19/10/2016","Schools","Bilston Church of England Primary School","R2101"
"Wolverhampton City Council","http://opendatacommunities.org/id/metropolitan-district-council/wolverhampton","Total Gas & Power Limited","137494550","159.89","Gas","190276217","19/10/2016","Schools","Villiers Primary School","R2101"
"Wolverhampton City Council","http://opendatacommunities.org/id/metropolitan-district-council/wolverhampton","Total Gas & Power Limited","137520400","234.84","Gas","190276224","19/10/2016","Schools","Hill Avenue Primary School","R2101"
"Wolverhampton City Council","http://opendatacommunities.org/id/metropolitan-district-council/wolverhampton","Total Gas & Power Limited","137520454","261.59","Gas","190276225","19/10/2016","Schools","Broadmeadow Nursery Special School","R2101"
"Wolverhampton City Council","http://opendatacommunities.org/id/metropolitan-district-council/wolverhampton","Total Gas & Power Limited","136051536C","-151.04","Gas","190276208","19/10/2016","Schools","St Bartholomew�s Church of England Primary School","R2101"
"Wolverhampton City Council","http://opendatacommunities.org/id/metropolitan-district-council/wolverhampton","Total Gas & Power Limited","137494593","58.07","Gas","190276218","19/10/2016","Schools","Uplands Junior School","R2101"
"Wolverhampton City Council","http://opendatacommunities.org/id/metropolitan-district-council/wolverhampton","Total Gas & Power Limited","137520388","193.99","Gas","190276223","19/10/2016","Schools","Merridale Primary School","R2101"
"Wolverhampton City Council","http://opendatacommunities.org/id/metropolitan-district-council/wolverhampton","Total Gas & Power Limited","137536096","35.21","Gas","190276213","19/10/2016","Schools","Wood End Primary School","R2101"
"Wolverhampton City Council","http://opendatacommunities.org/id/metropolitan-district-council/wolverhampton","Total Gas & Power Limited","137536063","40.98","Gas","190276210","19/10/2016","Schools","Warstones Primary School","R2101"
"Wolverhampton City Council","http://opendatacommunities.org/id/metropolitan-district-council/wolverhampton","Total Gas & Power Limited","137494604","27.21","Gas","190276219","19/10/2016","Schools","East Park Primary School","R2101"
"Wolverhampton City Council","http://opendatacommunities.org/id/metropolitan-district-council/wolverhampton","Total Gas & Power Limited","137494538","25.80","Gas","190276216","19/10/2016","Schools","Bushbury Nursery","R2101"
"Wolverhampton City Council","http://opendatacommunities.org/id/metropolitan-district-council/wolverhampton","Total Gas & Power Limited","137494648","25.80","Gas","190276221","19/10/2016","Schools","Trinity Church of England Primary School","R2101"
"Wolverhampton City Council","http://opendatacommunities.org/id/metropolitan-district-council/wolverhampton","Total Gas & Power Limited","137520476","419.03","Gas","190276226","19/10/2016","Schools","Dovecotes Primary School","R2101"
"Wolverhampton City Council","http://opendatacommunities.org/id/metropolitan-district-council/wolverhampton","Total Gas & Power Limited","137520564","400.90","Gas","190276230","19/10/2016","Schools","Castlecroft Primary School","R2101"
"Wolverhampton City Council","http://opendatacommunities.org/id/metropolitan-district-council/wolverhampton","Total Gas & Power Limited","137520883","205.01","Gas","190276242","19/10/2016","Schools","Lanesfield Primary School","R2101"
"Wolverhampton City Council","http://opendatacommunities.org/id/metropolitan-district-council/wolverhampton","Total Gas & Power Limited","137520597","204.60","Gas","190276233","19/10/2016","Schools","Westacre Infant School","R2101"
"Wolverhampton City Council","http://opendatacommunities.org/id/metropolitan-district-council/wolverhampton","Total Gas & Power Limited","137520730","866.13","Gas","190276238","19/10/2016","Schools","Stowheath Primary School","R2101"
"Wolverhampton City Council","http://opendatacommunities.org/id/metropolitan-district-council/wolverhampton","Total Gas & Power Limited","137535843","189.15","Gas","190276246","19/10/2016","Schools","Woodthorne Primary School","R2101"
"Wolverhampton City Council","http://opendatacommunities.org/id/metropolitan-district-council/wolverhampton","Total Gas & Power Limited","137520861","192.57","Gas","190276241","19/10/2016","Schools","West Park Primary School","R2101"
"Wolverhampton City Council","http://opendatacommunities.org/id/metropolitan-district-council/wolverhampton","Total Gas & Power Limited","137520773","200.17","Gas","190276239","19/10/2016","Facilities Management","Bingley Site","R2101"
"Wolverhampton City Council","http://opendatacommunities.org/id/metropolitan-district-council/wolverhampton","Total Gas & Power Limited","137520840","383.12","Gas","190276240","19/10/2016","Schools","Warstones Primary School","R2101"
"Wolverhampton City Council","http://opendatacommunities.org/id/metropolitan-district-council/wolverhampton","Total Gas & Power Limited","137520630","1,227.04","Gas","190276235","19/10/2016","Schools","Deansfield High School","R2101"
"Wolverhampton City Council","http://opendatacommunities.org/id/metropolitan-district-council/wolverhampton","Total Gas & Power Limited","137520575","260.08","Gas","190276231","19/10/2016","Schools","Parkfield Primary School","R2101"
"Wolverhampton City Council","http://opendatacommunities.org/id/metropolitan-district-council/wolverhampton","Total Gas & Power Limited","137520674","228.87","Gas","190276236","19/10/2016","Schools","Long Knowle Primary School","R2101"
"Wolverhampton City Council","http://opendatacommunities.org/id/metropolitan-district-council/wolverhampton","Total Gas & Power Limited","137520553","253.91","Gas","190276229","19/10/2016","Schools","Oxley Primary School","R2101"
"Wolverhampton City Council","http://opendatacommunities.org/id/metropolitan-district-council/wolverhampton","Total Gas & Power Limited","137520542","218.53","Gas","190276228","19/10/2016","Schools","D�Eyncourt Primary School","R2101"
"Wolverhampton City Council","http://opendatacommunities.org/id/metropolitan-district-council/wolverhampton","Total Gas & Power Limited","137520619","371.62","Gas","190276234","19/10/2016","Schools","East Park Primary School","R2101"
"Wolverhampton City Council","http://opendatacommunities.org/id/metropolitan-district-council/wolverhampton","Total Gas & Power Limited","136005480C","-361.11","Gas","190276237","19/10/2016","Schools","St Andrews Church of England Primary School","R2101"
"Wolverhampton City Council","http://opendatacommunities.org/id/metropolitan-district-council/wolverhampton","Total Gas & Power Limited","137521345","381.15","Gas","190276244","19/10/2016","Schools","Rakegate Primary School","R2101"
"Wolverhampton City Council","http://opendatacommunities.org/id/metropolitan-district-council/wolverhampton","Total Gas & Power Limited","137536020","364.70","Gas","190276247","19/10/2016","Schools","Fallings Park Primary School","R2101"
"Wolverhampton City Council","http://opendatacommunities.org/id/metropolitan-district-council/wolverhampton","Total Gas & Power Limited","137520586","282.01","Gas","190276232","19/10/2016","Schools","Goldthorn Park Primary School","R2101"
"Wolverhampton City Council","http://opendatacommunities.org/id/metropolitan-district-council/wolverhampton","Total Gas & Power Limited","137520993","359.64","Gas","190276243","19/10/2016","Schools","Claregate Primary School","R2101"
"Wolverhampton City Council","http://opendatacommunities.org/id/metropolitan-district-council/wolverhampton","Total Gas & Power Limited","137535579","1,447.07","Gas","190276245","19/10/2016","Schools","Tettenhall Wood Special School","R2101"
"Wolverhampton City Council","http://opendatacommunities.org/id/metropolitan-district-council/wolverhampton","Total Gas & Power Limited","137494560","112.62","Gas","190276248","19/10/2016","Schools","Villiers Primary School","R2101"
"Wolverhampton City Council","http://opendatacommunities.org/id/metropolitan-district-council/wolverhampton","Total Gas & Power Limited","137494703","403.57","Gas","190276249","19/10/2016","Schools","Edward The Elder Primary School","R2101"
"Wolverhampton City Council","http://opendatacommunities.org/id/metropolitan-district-council/wolverhampton","Traffix","20236","1,788.00","TPP - Traffic Management","130141386","26/10/2016","Highways Maintenance","Highway & Land Drainage","R5050"
"Wolverhampton City Council","http://opendatacommunities.org/id/metropolitan-district-council/wolverhampton","Traffix","19765","150.00","TPP - Traffic Management","130132232","26/10/2016","Highways Maintenance","Highway & Land Drainage","R5050"
"Wolverhampton City Council","http://opendatacommunities.org/id/metropolitan-district-council/wolverhampton","Traffix","1052","-150.00","TPP - Traffic Management","130139813","26/10/2016","Highways Maintenance","Highway & Land Drainage","R5050"
"Wolverhampton City Council","http://opendatacommunities.org/id/metropolitan-district-council/wolverhampton","Transport Door Solutions Limited","37448","1.85","Equipment - Purchase","190272269","05/10/2016","Fleet Services","Fleet Management","R4000"
"Wolverhampton City Council","http://opendatacommunities.org/id/metropolitan-district-council/wolverhampton","Transport Door Solutions Limited","37448","2.15","Equipment - Purchase","190272269","05/10/2016","Fleet Services","Fleet Management","R4000"
"Wolverhampton City Council","http://opendatacommunities.org/id/metropolitan-district-council/wolverhampton","Transport Door Solutions Limited","37448","5.00","Equipment - Purchase","190272269","05/10/2016","Fleet Services","Fleet Management","R4000"
"Wolverhampton City Council","http://opendatacommunities.org/id/metropolitan-district-council/wolverhampton","Transport Door Solutions Limited","37448","1.62","Equipment - Purchase","190272269","05/10/2016","Fleet Services","Fleet Management","R4000"
"Wolverhampton City Council","http://opendatacommunities.org/id/metropolitan-district-council/wolverhampton","Transport Door Solutions Limited","37448","11.50","Equipment - Purchase","190272269","05/10/2016","Fleet Services","Fleet Management","R4000"
"Wolverhampton City Council","http://opendatacommunities.org/id/metropolitan-district-council/wolverhampton","Treasured Memories Limited","18919","49.60","Materials","130139333","12/10/2016","Bereavement Services","Crematorium","R4007"
"Wolverhampton City Council","http://opendatacommunities.org/id/metropolitan-district-council/wolverhampton","Trowers & Hamlins Llp","2489560","11,768.64","Services - Professional Fees","130141695","26/10/2016","Housing","Wholly Owned Company - Set Up","R4400"
"Wolverhampton City Council","http://opendatacommunities.org/id/metropolitan-district-council/wolverhampton","Trowers & Hamlins Llp","2489561","5,834.77","Services - Professional Fees","130141696","26/10/2016","Housing","Wholly Owned Company - Set Up","R4400"
"Wolverhampton City Council","http://opendatacommunities.org/id/metropolitan-district-council/wolverhampton","Trowers & Hamlins Llp","2470452","174.57","Services - Professional Fees","130140243","12/10/2016","School Planning & Resources","Building Schools for the Future (BSF)","R4400"
"Wolverhampton City Council","http://opendatacommunities.org/id/metropolitan-district-council/wolverhampton","Truvox International Limited","237461","354.47","Equipment - Purchase","130137509","07/10/2016","Cleaning","Cleaning of Buildings - General","R4000"
"Wolverhampton City Council","http://opendatacommunities.org/id/metropolitan-district-council/wolverhampton","Truvox International Limited","237837","2,370.00","Equipment - Purchase","130138945","21/10/2016","Cleaning","Cleaning of Buildings - General","R4000"
"Wolverhampton City Council","http://opendatacommunities.org/id/metropolitan-district-council/wolverhampton","Tudor Environmental","175057","936.65","Materials","130139563","12/10/2016","Environmental Maintenance","Ground Maintenance West","R4007"
"Wolverhampton City Council","http://opendatacommunities.org/id/metropolitan-district-council/wolverhampton","Tudor Environmental","175299","524.66","Materials","130140504","28/10/2016","Environmental Maintenance","Ground Maintenance West","R4007"
"Wolverhampton City Council","http://opendatacommunities.org/id/metropolitan-district-council/wolverhampton","Tudor Environmental","174515","180.83","Equipment - Purchase","130138793","19/10/2016","Leisure Services","Aldersley Leisure Village","R4000"
"Wolverhampton City Council","http://opendatacommunities.org/id/metropolitan-district-council/wolverhampton","Tudor Medical Centre","M2016Q215SHCIFRQ","321.72","TPP - Public Health Contracts","190279076","26/10/2016","Contracts","Sexual Health","R5060"
"Wolverhampton City Council","http://opendatacommunities.org/id/metropolitan-district-council/wolverhampton","Tudor Medical Centre","M2016Q215HL2COMQ","275.00","TPP - Public Health Contracts","190279081","26/10/2016","Contracts","Healthy Lifestyles","R5060"
"Wolverhampton City Council","http://opendatacommunities.org/id/metropolitan-district-council/wolverhampton","Tudor Medical Centre","M2016Q215HL1IHCQ","5.00","TPP - Public Health Contracts","190279079","26/10/2016","Contracts","Healthy Lifestyles","R5060"
"Wolverhampton City Council","http://opendatacommunities.org/id/metropolitan-district-council/wolverhampton","Tudor Medical Centre","M2016Q215SHIUDFQ","479.40","TPP - Public Health Contracts","190279078","26/10/2016","Contracts","Sexual Health","R5060"
"Wolverhampton City Council","http://opendatacommunities.org/id/metropolitan-district-council/wolverhampton","Tudor Medical Centre","M2016Q215SHCIFBQ","61.27","TPP - Public Health Contracts","190279077","26/10/2016","Contracts","Sexual Health","R5060"
"Wolverhampton City Council","http://opendatacommunities.org/id/metropolitan-district-council/wolverhampton","Tudor Medical Centre","M2016Q215HL1IPRQ","11.00","TPP - Public Health Contracts","190279080","26/10/2016","Contracts","Healthy Lifestyles","R5060"
"Wolverhampton City Council","http://opendatacommunities.org/id/metropolitan-district-council/wolverhampton","Tudor Medical Centre","M2016Q215SHCIFIQ","137.88","TPP - Public Health Contracts","190279075","26/10/2016","Contracts","Sexual Health","R5060"
"Wolverhampton City Council","http://opendatacommunities.org/id/metropolitan-district-council/wolverhampton","Tunstall Healthcare (UK) Limited","3IN/10286022","7,837.40","Equipment - Purchase","130139146","26/10/2016","Independent Living Service","Telecare","R4000"
"Wolverhampton City Council","http://opendatacommunities.org/id/metropolitan-district-council/wolverhampton","Turnock Limited","42346","922.76","Materials","130139147","12/10/2016","Street Lighting","Christmas Illuminations","R4007"
"Wolverhampton City Council","http://opendatacommunities.org/id/metropolitan-district-council/wolverhampton","Tyco Integrated Fire & Security","TL033268","1,837.25","Equipment - R & M","130139059","05/10/2016","Operation & Maintenance of Existing Network","UTC only � External Rechargeable Works","R4003"
"Wolverhampton City Council","http://opendatacommunities.org/id/metropolitan-district-council/wolverhampton","Tyco Integrated Fire & Security","TL033270","1,837.25","Equipment - R & M","130139190","05/10/2016","Operation & Maintenance of Existing Network","UTC only � External Rechargeable Works","R4003"
"Wolverhampton City Council","http://opendatacommunities.org/id/metropolitan-district-council/wolverhampton","Tyco Integrated Fire & Security","TL033269","1,837.25","Equipment - R & M","130139189","05/10/2016","Operation & Maintenance of Existing Network","UTC only � External Rechargeable Works","R4003"
"Wolverhampton City Council","http://opendatacommunities.org/id/metropolitan-district-council/wolverhampton","Tyddyn Hen Limited","202656","285.17","Provisions (Not for resale)","130139573","26/10/2016","School Planning & Resources","Towers Outdoor Education Centre","R4101"
"Wolverhampton City Council","http://opendatacommunities.org/id/metropolitan-district-council/wolverhampton","Tynetec Limited","0000145411","4,063.80","Equipment - Purchase","130132525","05/10/2016","Independent Living Service","Telecare","R4000"
"Wolverhampton City Council","http://opendatacommunities.org/id/metropolitan-district-council/wolverhampton","Ulverscroft Large Print Books Limited","I606197","202.95","Books","130140142","26/10/2016","Library Services","Global Budgets","R4309"
"Wolverhampton City Council","http://opendatacommunities.org/id/metropolitan-district-council/wolverhampton","Ulverscroft Large Print Books Limited","I605771","281.34","Books","130138858","14/10/2016","Library Services","Global Budgets","R4309"
"Wolverhampton City Council","http://opendatacommunities.org/id/metropolitan-district-council/wolverhampton","Ulverscroft Large Print Books Limited","I605773","18.05","Books","130138859","14/10/2016","Library Services","Global Budgets","R4309"
"Wolverhampton City Council","http://opendatacommunities.org/id/metropolitan-district-council/wolverhampton","Univar Limited","91084886","27.89","Materials","130138025","07/10/2016","Leisure Services","Bert Williams Leisure Centre","R4007"
"Wolverhampton City Council","http://opendatacommunities.org/id/metropolitan-district-council/wolverhampton","Univar Limited","91088144","-11.00","Materials","130139000","26/10/2016","Leisure Services","Central Baths","R4007"
"Wolverhampton City Council","http://opendatacommunities.org/id/metropolitan-district-council/wolverhampton","Univar Limited","91092062","354.06","Materials","130139380","26/10/2016","Leisure Services","Central Baths","R4007"
"Wolverhampton City Council","http://opendatacommunities.org/id/metropolitan-district-council/wolverhampton","Univar Limited","91092061","339.40","Materials","130139379","26/10/2016","Leisure Services","Central Baths","R4007"
"Wolverhampton City Council","http://opendatacommunities.org/id/metropolitan-district-council/wolverhampton","Univar Limited","91092061","30.00","Materials","130139379","26/10/2016","Leisure Services","Central Baths","R4007"
"Wolverhampton City Council","http://opendatacommunities.org/id/metropolitan-district-council/wolverhampton","University Hospitals Birmingham","OP/T001562","5,130.00","TPP - Public Health Contracts","130133223","05/10/2016","Contracts","Sexual Health","R5060"
"Wolverhampton City Council","http://opendatacommunities.org/id/metropolitan-district-council/wolverhampton","University Hospitals Birmingham","OP/T001562","440.00","TPP - Public Health Contracts","130133223","05/10/2016","Contracts","Sexual Health","R5060"
"Wolverhampton City Council","http://opendatacommunities.org/id/metropolitan-district-council/wolverhampton","University Of Wolverhampton","45043134","24.00","Catering","130136640","05/10/2016","Service Director City Economy","Service Director City Economy","R4100"
"Wolverhampton City Council","http://opendatacommunities.org/id/metropolitan-district-council/wolverhampton","University Of Wolverhampton","45042758","1,380.00","Agency Staff","130134690","26/10/2016","Enterprise","Business Engagement","R1100"
"Wolverhampton City Council","http://opendatacommunities.org/id/metropolitan-district-council/wolverhampton","University Of Wolverhampton","45044049","30,596.00","Grant Payments","130140532","12/10/2016","Enterprise","Growth Hub Phase 2 (2015/16)","R4700"
"Wolverhampton City Council","http://opendatacommunities.org/id/metropolitan-district-council/wolverhampton","Univ. Of Wolverhampton (Little Scholars)","45040509","216.00","TPP - Child Care provided for client","130126474","05/10/2016","Adult Education","Discretionary Fund","R5034"
"Wolverhampton City Council","http://opendatacommunities.org/id/metropolitan-district-council/wolverhampton","Uow Corporate Services Limited","K009999","371.50","Catering","130142510","28/10/2016","Skills","European Liaison","R4100"
"Wolverhampton City Council","http://opendatacommunities.org/id/metropolitan-district-council/wolverhampton","AECOM Infrastructure & Environment UK Ltd","28276454","599.49","Construction and Conversion","130134957","05/10/2016","","Integrated Transport","C1100"
"Wolverhampton City Council","http://opendatacommunities.org/id/metropolitan-district-council/wolverhampton","AECOM Infrastructure & Environment UK Ltd","28276648","3,734.57","Construction and Conversion","130135124","05/10/2016","","Integrated Transport","C1100"
"Wolverhampton City Council","http://opendatacommunities.org/id/metropolitan-district-council/wolverhampton","AECOM Infrastructure & Environment UK Ltd","28274907","2,166.67","Services - Professional Fees","130134115","05/10/2016","Transportation","Section 278 and 38 Agreements","R4400"
"Wolverhampton City Council","http://opendatacommunities.org/id/metropolitan-district-council/wolverhampton","AECOM Infrastructure & Environment UK Ltd","28278773","281.35","Construction and Conversion","130137512","07/10/2016","","Integrated Transport","C1100"
"Wolverhampton City Council","http://opendatacommunities.org/id/metropolitan-district-council/wolverhampton","AECOM Infrastructure & Environment UK Ltd","28278766","6,537.27","Construction and Conversion","130137511","07/10/2016","","City Centre Transport & Movement Enhancements","C1100"
"Wolverhampton City Council","http://opendatacommunities.org/id/metropolitan-district-council/wolverhampton","AECOM Infrastructure & Environment UK Ltd","28278765","574.21","Services - Professional Fees","130137510","07/10/2016","Transportation","Section 278 and 38 Agreements","R4400"
"Wolverhampton City Council","http://opendatacommunities.org/id/metropolitan-district-council/wolverhampton","AECOM Infrastructure & Environment UK Ltd","28278794","1,525.19","Construction and Conversion","130137669","07/10/2016","","Integrated Transport","C1100"
"Wolverhampton City Council","http://opendatacommunities.org/id/metropolitan-district-council/wolverhampton","AECOM Infrastructure & Environment UK Ltd","28278812","137.48","Construction and Conversion","130137671","07/10/2016","","Integrated Transport","C1100"
"Wolverhampton City Council","http://opendatacommunities.org/id/metropolitan-district-council/wolverhampton","AECOM Infrastructure & Environment UK Ltd","28274984","1,912.91","Construction and Conversion","130134117","05/10/2016","","GF - Managing Short Trips","C1100"
"Wolverhampton City Council","http://opendatacommunities.org/id/metropolitan-district-council/wolverhampton","AECOM Infrastructure & Environment UK Ltd","28274984","1,912.91","Construction and Conversion","130134117","05/10/2016","","GF - Managing Short Trips","C1100"
"Wolverhampton City Council","http://opendatacommunities.org/id/metropolitan-district-council/wolverhampton","AECOM Infrastructure & Environment UK Ltd","28274984","2,550.55","Construction and Conversion","130134117","05/10/2016","","GF - Managing Short Trips","C1100"
"Wolverhampton City Council","http://opendatacommunities.org/id/metropolitan-district-council/wolverhampton","AECOM Infrastructure & Environment UK Ltd","28274984","637.64","Construction and Conversion","130134117","05/10/2016","","Safety Programme","C1100"
"Wolverhampton City Council","http://opendatacommunities.org/id/metropolitan-district-council/wolverhampton","AECOM Infrastructure & Environment UK Ltd","28280184","11,664.51","Services - Professional Fees","130138664","26/10/2016","Transportation","Bridges & Subways","R4400"
"Wolverhampton City Council","http://opendatacommunities.org/id/metropolitan-district-council/wolverhampton","AECOM Infrastructure & Environment UK Ltd","28278795","379.50","Services - Professional Fees","130137670","26/10/2016","City Development","Southside","R4400"
"Wolverhampton City Council","http://opendatacommunities.org/id/metropolitan-district-council/wolverhampton","AECOM Infrastructure & Environment UK Ltd","28276058","480.97","Construction and Conversion","130134953","12/10/2016","","Integrated Transport","C1100"
"Wolverhampton City Council","http://opendatacommunities.org/id/metropolitan-district-council/wolverhampton","AECOM Infrastructure & Environment UK Ltd","28279863","1,791.44","Construction and Conversion","130138519","21/10/2016","","Integrated Transport","C1100"
"Wolverhampton City Council","http://opendatacommunities.org/id/metropolitan-district-council/wolverhampton","AECOM Infrastructure & Environment UK Ltd","28279861","6,994.37","Construction and Conversion","130138518","21/10/2016","","Integrated Transport","C1100"
"Wolverhampton City Council","http://opendatacommunities.org/id/metropolitan-district-council/wolverhampton","AECOM Infrastructure & Environment UK Ltd","28279947","1,390.82","Services - Professional Fees","130138520","21/10/2016","Transportation","Bridges & Subways","R4400"
"Wolverhampton City Council","http://opendatacommunities.org/id/metropolitan-district-council/wolverhampton","AECOM Infrastructure & Environment UK Ltd","28279087","209.21","Construction and Conversion","130137820","28/10/2016","","Bilston Urban Village","C1100"
"Wolverhampton City Council","http://opendatacommunities.org/id/metropolitan-district-council/wolverhampton","AECOM Infrastructure & Environment UK Ltd","28274940","4,561.95","Services - Professional Fees","130134116","28/10/2016","Transportation","Strategy & Development","R4400"
"Wolverhampton City Council","http://opendatacommunities.org/id/metropolitan-district-council/wolverhampton","AECOM Infrastructure & Environment UK Ltd","28278977","4,437.45","Services - Professional Fees","130137675","28/10/2016","Transportation","Strategy & Development","R4400"
"Wolverhampton City Council","http://opendatacommunities.org/id/metropolitan-district-council/wolverhampton","AECOM Infrastructure & Environment UK Ltd","28276615","5,350.61","Construction and Conversion","130135121","28/10/2016","","Safety Programme","C1100"
"Wolverhampton City Council","http://opendatacommunities.org/id/metropolitan-district-council/wolverhampton","AECOM Infrastructure & Environment UK Ltd","28278830","2,931.20","Construction and Conversion","130137672","28/10/2016","","GF - Accessing Growth Fund","C1100"
"Wolverhampton City Council","http://opendatacommunities.org/id/metropolitan-district-council/wolverhampton","AECOM Infrastructure & Environment UK Ltd","28279050","843.07","Construction and Conversion","130137818","19/10/2016","","Integrated Transport","C1100"
"Wolverhampton City Council","http://opendatacommunities.org/id/metropolitan-district-council/wolverhampton","AECOM Infrastructure & Environment UK Ltd","28279430","2,315.13","Construction and Conversion","130138157","14/10/2016","","GF - Accessing Growth Fund","C1100"
"Wolverhampton City Council","http://opendatacommunities.org/id/metropolitan-district-council/wolverhampton","AECOM Infrastructure & Environment UK Ltd","28279432","424.57","Construction and Conversion","130138158","14/10/2016","","Integrated Transport","C1100"
"Wolverhampton City Council","http://opendatacommunities.org/id/metropolitan-district-council/wolverhampton","AECOM Infrastructure & Environment UK Ltd","28279148","4,990.47","Services - Professional Fees","130137824","14/10/2016","Transportation","Strategy & Development","R4400"
"Wolverhampton City Council","http://opendatacommunities.org/id/metropolitan-district-council/wolverhampton","AECOM Infrastructure & Environment UK Ltd","28279076","4,963.69","Services - Professional Fees","130137819","14/10/2016","Transportation","Strategy & Development","R4400"
"Wolverhampton City Council","http://opendatacommunities.org/id/metropolitan-district-council/wolverhampton","AECOM Infrastructure & Environment UK Ltd","28279047","2,909.85","Services - Professional Fees","130137817","14/10/2016","Transportation","Section 278 and 38 Agreements","R4400"
"Wolverhampton City Council","http://opendatacommunities.org/id/metropolitan-district-council/wolverhampton","AECOM Infrastructure & Environment UK Ltd","28278842","55.00","Construction and Conversion","130137815","14/10/2016","","Integrated Transport","C1100"
"Wolverhampton City Council","http://opendatacommunities.org/id/metropolitan-district-council/wolverhampton","AECOM Infrastructure & Environment UK Ltd","28278841","318.24","Construction and Conversion","130137674","14/10/2016","","Transport Structual Maintenance","C1100"
"Wolverhampton City Council","http://opendatacommunities.org/id/metropolitan-district-council/wolverhampton","AECOM Infrastructure & Environment UK Ltd","28279408","2,218.63","Construction and Conversion","130138156","14/10/2016","","GF - Managing Short Trips","C1100"
"Wolverhampton City Council","http://opendatacommunities.org/id/metropolitan-district-council/wolverhampton","AECOM Infrastructure & Environment UK Ltd","28278836","198.84","Services - Professional Fees","130137673","14/10/2016","Operation & Maintenance of Existing Network","Surface Water Management","R4400"
"Wolverhampton City Council","http://opendatacommunities.org/id/metropolitan-district-council/wolverhampton","AECOM Infrastructure & Environment UK Ltd","28279112","6,881.68","Services - Professional Fees","130137822","14/10/2016","Highways Maintenance","Planned Highways Maintenance","R4400"
"Wolverhampton City Council","http://opendatacommunities.org/id/metropolitan-district-council/wolverhampton","AECOM Infrastructure & Environment UK Ltd","28279520","18,149.70","Construction and Conversion","130138344","14/10/2016","","Transport Structual Maintenance","C1100"
"Wolverhampton City Council","http://opendatacommunities.org/id/metropolitan-district-council/wolverhampton","AECOM Infrastructure & Environment UK Ltd","28278975","165.86","Construction and Conversion","130137816","14/10/2016","","Integrated Transport","C1100"
"Wolverhampton City Council","http://opendatacommunities.org/id/metropolitan-district-council/wolverhampton","AECOM Infrastructure & Environment UK Ltd","28279162","3,602.10","Services - Professional Fees","130137825","14/10/2016","Operation & Maintenance of Existing Network","Condition Surveys","R4400"
"Wolverhampton City Council","http://opendatacommunities.org/id/metropolitan-district-council/wolverhampton","AECOM Infrastructure & Environment UK Ltd","28279113","5,379.99","Services - Professional Fees","130137823","14/10/2016","Operation & Maintenance of Existing Network","Condition Surveys","R4400"
"Wolverhampton City Council","http://opendatacommunities.org/id/metropolitan-district-council/wolverhampton","AECOM Infrastructure & Environment UK Ltd","28279097","6,972.00","Services - Professional Fees","130137821","14/10/2016","Transportation","Strategy & Development","R4400"
"Wolverhampton City Council","http://opendatacommunities.org/id/metropolitan-district-council/wolverhampton","AECOM Infrastructure & Environment UK Ltd","28278981","485.46","Construction and Conversion","130137676","14/10/2016","","Transport Structual Maintenance","C1100"
"Wolverhampton City Council","http://opendatacommunities.org/id/metropolitan-district-council/wolverhampton","Venn Group Limited","3223034","834.05","Agency Staff","130137518","07/10/2016","Legal Services","Legal Services","R1100"
"Wolverhampton City Council","http://opendatacommunities.org/id/metropolitan-district-council/wolverhampton","Venn Group Limited","3223037","1,500.00","Agency Staff","130137521","07/10/2016","ICTS","Digital Transformation Programme","R1100"
"Wolverhampton City Council","http://opendatacommunities.org/id/metropolitan-district-council/wolverhampton","Venn Group Limited","3223035","2,250.00","Agency Staff","130137519","07/10/2016","ICTS","Digital Transformation Programme","R1100"
"Wolverhampton City Council","http://opendatacommunities.org/id/metropolitan-district-council/wolverhampton","Venn Group Limited","3223036","2,400.00","Agency Staff","130137520","07/10/2016","ICTS","Digital Transformation Programme","R1100"
"Wolverhampton City Council","http://opendatacommunities.org/id/metropolitan-district-council/wolverhampton","Venn Group Limited","3223038","2,750.00","Agency Staff","130137522","07/10/2016","ICTS","Digital Transformation Programme","R1100"
"Wolverhampton City Council","http://opendatacommunities.org/id/metropolitan-district-council/wolverhampton","Venn Group Limited","3227638","1,295.00","Agency Staff","130139140","26/10/2016","Legal Services","Legal Services","R1100"
"Wolverhampton City Council","http://opendatacommunities.org/id/metropolitan-district-council/wolverhampton","Venn Group Limited","3227639","900.00","Agency Staff","130139141","26/10/2016","ICTS","Digital Transformation Programme","R1100"
"Wolverhampton City Council","http://opendatacommunities.org/id/metropolitan-district-council/wolverhampton","Venn Group Limited","3227642","2,750.00","Agency Staff","130139144","26/10/2016","ICTS","Digital Transformation Programme","R1100"
"Wolverhampton City Council","http://opendatacommunities.org/id/metropolitan-district-council/wolverhampton","Venn Group Limited","3227641","600.00","Agency Staff","130139143","26/10/2016","ICTS","Digital Transformation Programme","R1100"
"Wolverhampton City Council","http://opendatacommunities.org/id/metropolitan-district-council/wolverhampton","Venn Group Limited","3225335","2,400.00","Agency Staff","130138358","14/10/2016","ICTS","Digital Transformation Programme","R1100"
"Wolverhampton City Council","http://opendatacommunities.org/id/metropolitan-district-council/wolverhampton","Venn Group Limited","3225334","1,189.65","Agency Staff","130138357","14/10/2016","Legal Services","Legal Services","R1100"
"Wolverhampton City Council","http://opendatacommunities.org/id/metropolitan-district-council/wolverhampton","Venn Group Limited","3225337","2,750.00","Agency Staff","130138360","14/10/2016","ICTS","Digital Transformation Programme","R1100"
"Wolverhampton City Council","http://opendatacommunities.org/id/metropolitan-district-council/wolverhampton","Venue Catering Partner Limited","22121","84.34","Room Hire","130138509","07/10/2016","Skills","European Liaison","R2201"
"Wolverhampton City Council","http://opendatacommunities.org/id/metropolitan-district-council/wolverhampton","Venue Catering Partner Limited","21184","19.50","Catering","130130249","07/10/2016","Transportation","Strategy & Development","R4100"
"Wolverhampton City Council","http://opendatacommunities.org/id/metropolitan-district-council/wolverhampton","Venue Catering Partner Limited","22108","1,463.23","Room Hire","130138143","05/10/2016","Standards and Vulnerable Pupils","Parent / Partnership Service","R2201"
"Wolverhampton City Council","http://opendatacommunities.org/id/metropolitan-district-council/wolverhampton","Venue Catering Partner Limited","22108","-1,463.23","Room Hire","130138143","05/10/2016","Standards and Vulnerable Pupils","Parent / Partnership Service","R2201"
"Wolverhampton City Council","http://opendatacommunities.org/id/metropolitan-district-council/wolverhampton","Venue Catering Partner Limited","22108","1,463.23","Room Hire","130138143","05/10/2016","Standards and Vulnerable Pupils","Parent / Partnership Service","R2201"
"Wolverhampton City Council","http://opendatacommunities.org/id/metropolitan-district-council/wolverhampton","Venue Catering Partner Limited","21978","47.00","Catering","130137662","05/10/2016","Speclialist Support","Youth Zone","R4100"
"Wolverhampton City Council","http://opendatacommunities.org/id/metropolitan-district-council/wolverhampton","Venue Catering Partner Limited","21744","46.96","Conference Expenses","130142175","26/10/2016","Director of Governance","Director of Governance","R4611"
"Wolverhampton City Council","http://opendatacommunities.org/id/metropolitan-district-council/wolverhampton","Venue Catering Partner Limited","22328","459.29","Catering","130142178","26/10/2016","Enterprise","Business Engagement","R4100"
"Wolverhampton City Council","http://opendatacommunities.org/id/metropolitan-district-council/wolverhampton","Venue Catering Partner Limited","21339","95.00","Room Hire","130142170","26/10/2016","Standards and Vulnerable Pupils","SEN Special Education Admin","R2201"
"Wolverhampton City Council","http://opendatacommunities.org/id/metropolitan-district-council/wolverhampton","Venue Catering Partner Limited","22322","756.25","Room Hire","130142177","26/10/2016","Early Intervention","EIP Locality 1","R2201"
"Wolverhampton City Council","http://opendatacommunities.org/id/metropolitan-district-council/wolverhampton","Venue Catering Partner Limited","20957","14.16","Catering","130142167","26/10/2016","Corporate Communications","Communications & Marketing - General","R4100"
"Wolverhampton City Council","http://opendatacommunities.org/id/metropolitan-district-council/wolverhampton","Venue Catering Partner Limited","21122","-20.83","Room Hire","130142168","28/10/2016","Health Protection & NHS Facing","Health Protection & NHS Facing","R2201"
"Wolverhampton City Council","http://opendatacommunities.org/id/metropolitan-district-council/wolverhampton","Venue Catering Partner Limited","21122","20.83","Room Hire","130142168","28/10/2016","Health Protection & NHS Facing","Health Protection & NHS Facing","R2201"
"Wolverhampton City Council","http://opendatacommunities.org/id/metropolitan-district-council/wolverhampton","Venue Catering Partner Limited","21122","20.83","Room Hire","130142168","28/10/2016","Health Protection & NHS Facing","Health Protection & NHS Facing","R2201"
"Wolverhampton City Council","http://opendatacommunities.org/id/metropolitan-district-council/wolverhampton","Venue Catering Partner Limited","21340","52.30","Room Hire","130142171","28/10/2016","Mental Health Commissioning","Head Start Wolverhampton","R2201"
"Wolverhampton City Council","http://opendatacommunities.org/id/metropolitan-district-council/wolverhampton","Venue Catering Partner Limited","21340","-52.30","Room Hire","130142171","28/10/2016","Mental Health Commissioning","Head Start Wolverhampton","R2201"
"Wolverhampton City Council","http://opendatacommunities.org/id/metropolitan-district-council/wolverhampton","Venue Catering Partner Limited","21340","52.30","Room Hire","130142171","28/10/2016","Mental Health Commissioning","Head Start Wolverhampton","R2201"
"Wolverhampton City Council","http://opendatacommunities.org/id/metropolitan-district-council/wolverhampton","Venue Catering Partner Limited","21450","16.08","Room Hire","130142173","28/10/2016","Mental Health Commissioning","Head Start Wolverhampton","R2201"
"Wolverhampton City Council","http://opendatacommunities.org/id/metropolitan-district-council/wolverhampton","Venue Catering Partner Limited","21450","-16.08","Room Hire","130142173","28/10/2016","Mental Health Commissioning","Head Start Wolverhampton","R2201"
"Wolverhampton City Council","http://opendatacommunities.org/id/metropolitan-district-council/wolverhampton","Venue Catering Partner Limited","21450","16.08","Room Hire","130142173","28/10/2016","Mental Health Commissioning","Head Start Wolverhampton","R2201"
"Wolverhampton City Council","http://opendatacommunities.org/id/metropolitan-district-council/wolverhampton","Venue Catering Partner Limited","22365","190.09","Hospitality","130142181","28/10/2016","Enterprise","Business Engagement","R4612"
"Wolverhampton City Council","http://opendatacommunities.org/id/metropolitan-district-council/wolverhampton","Verifone Services UK&Ireland Limited","7500601092","33.00","Equipment - Hire","130139910","07/10/2016","Catering","Civic Centre Catering","R4001"
"Wolverhampton City Council","http://opendatacommunities.org/id/metropolitan-district-council/wolverhampton","Verifone Services UK&Ireland Limited","7500639135","33.00","Equipment - Hire","130138012","07/10/2016","Catering","Civic Centre Catering","R4001"
"Wolverhampton City Council","http://opendatacommunities.org/id/metropolitan-district-council/wolverhampton","Verifone Services UK&Ireland Limited","7500636803","14.99","Equipment - Hire","130138011","07/10/2016","Leisure Services","Bert Williams Leisure Centre Caf�","R4001"
"Wolverhampton City Council","http://opendatacommunities.org/id/metropolitan-district-council/wolverhampton","Verifone Services UK&Ireland Limited","7500644976","39.98","R&M - Departmental planned (internal)","130138392","12/10/2016","Adult Education","Foyer Building","R2000"
"Wolverhampton City Council","http://opendatacommunities.org/id/metropolitan-district-council/wolverhampton","Virk Cut Price","REC14/SEP16","18.20","Publications","130139767","26/10/2016","Democratic Services","Members Expenses","R4310"
"Wolverhampton City Council","http://opendatacommunities.org/id/metropolitan-district-council/wolverhampton","Virk Cut Price","REC22/SEP16","141.00","Publications","130139768","26/10/2016","Democratic Services","Members Expenses","R4310"
"Wolverhampton City Council","http://opendatacommunities.org/id/metropolitan-district-council/wolverhampton","Virk Cut Price","REC24/SEP16","33.20","Publications","130139769","26/10/2016","Democratic Services","Members Expenses","R4310"
"Wolverhampton City Council","http://opendatacommunities.org/id/metropolitan-district-council/wolverhampton","Vodafone Corporate Limited","JK90248","4,725.00","Comms - Mobile Telephones","130135021","21/10/2016","ICTS","Strategic ICTS (ICT Service Budget)","R4507"
"Wolverhampton City Council","http://opendatacommunities.org/id/metropolitan-district-council/wolverhampton","Vodafone Corporate Limited","C760329","-50.00","Comms - Mobile Telephones","130134997","21/10/2016","ICTS","Strategic ICTS (ICT Service Budget)","R4507"
"Wolverhampton City Council","http://opendatacommunities.org/id/metropolitan-district-council/wolverhampton","Vodafone Corporate Limited","JH84071","70.00","Comms - Mobile Telephones","130129129","21/10/2016","ICTS","Strategic ICTS (ICT Service Budget)","R4507"
"Wolverhampton City Council","http://opendatacommunities.org/id/metropolitan-district-council/wolverhampton","Vodafone Corporate Limited","JH84072","70.00","Comms - Mobile Telephones","130129130","21/10/2016","ICTS","Strategic ICTS (ICT Service Budget)","R4507"
"Wolverhampton City Council","http://opendatacommunities.org/id/metropolitan-district-council/wolverhampton","Vodafone Corporate Limited","JL66935","315.00","Comms - Mobile Telephones","130137326","21/10/2016","ICTS","Strategic ICTS (ICT Service Budget)","R4507"
"Wolverhampton City Council","http://opendatacommunities.org/id/metropolitan-district-council/wolverhampton","Vodafone Corporate Limited","JH84073","70.00","Comms - Mobile Telephones","130129131","21/10/2016","ICTS","Strategic ICTS (ICT Service Budget)","R4507"
"Wolverhampton City Council","http://opendatacommunities.org/id/metropolitan-district-council/wolverhampton","Vodafone Corporate Limited","JI17044","50.00","Comms - Mobile Telephones","130130158","21/10/2016","ICTS","Strategic ICTS (ICT Service Budget)","R4507"
"Wolverhampton City Council","http://opendatacommunities.org/id/metropolitan-district-council/wolverhampton","Vodafone Corporate Limited","JH84074","70.00","Comms - Mobile Telephones","130129132","21/10/2016","ICTS","Strategic ICTS (ICT Service Budget)","R4507"
"Wolverhampton City Council","http://opendatacommunities.org/id/metropolitan-district-council/wolverhampton","Vodafone Corporate Limited","J L66934","5,145.00","Comms - Mobile Telephones","130139033","21/10/2016","ICTS","Strategic ICTS (ICT Service Budget)","R4507"
"Wolverhampton City Council","http://opendatacommunities.org/id/metropolitan-district-council/wolverhampton","Vodafone Corporate Limited","JK90249","2,940.00","Comms - Mobile Telephones","130135022","21/10/2016","ICTS","Strategic ICTS (ICT Service Budget)","R4507"
"Wolverhampton City Council","http://opendatacommunities.org/id/metropolitan-district-council/wolverhampton","Vodafone Corporate Limited","JK82252","5,145.00","Comms - Mobile Telephones","130135020","21/10/2016","ICTS","Strategic ICTS (ICT Service Budget)","R4507"
"Wolverhampton City Council","http://opendatacommunities.org/id/metropolitan-district-council/wolverhampton","Vodafone Corporate Limited","JM35898","105.00","Comms - Mobile Telephones","130138435","21/10/2016","ICTS","Strategic ICTS (ICT Service Budget)","R4507"
"Wolverhampton City Council","http://opendatacommunities.org/id/metropolitan-district-council/wolverhampton","Vodafone Corporate Limited","JL34313","105.00","Comms - Mobile Telephones","130136555","21/10/2016","ICTS","Strategic ICTS (ICT Service Budget)","R4507"
"Wolverhampton City Council","http://opendatacommunities.org/id/metropolitan-district-council/wolverhampton","W R Davies (Stafford) Limited","317901","5.50","Equipment - Purchase","190273396","07/10/2016","Fleet Services","Fleet Management","R4000"
"Wolverhampton City Council","http://opendatacommunities.org/id/metropolitan-district-council/wolverhampton","W R Davies (Stafford) Limited","317901","5.06","Equipment - Purchase","190273396","07/10/2016","Fleet Services","Fleet Management","R4000"
"Wolverhampton City Council","http://opendatacommunities.org/id/metropolitan-district-council/wolverhampton","W.F.Howes Limited","174582","124.80","Books","130140945","19/10/2016","Library Services","Global Budgets","R4309"
"Wolverhampton City Council","http://opendatacommunities.org/id/metropolitan-district-council/wolverhampton","W.F.Howes Limited","174584","46.80","Books","130140947","19/10/2016","Library Services","Global Budgets","R4309"
"Wolverhampton City Council","http://opendatacommunities.org/id/metropolitan-district-council/wolverhampton","W.F.Howes Limited","174586","76.00","Books","130140949","19/10/2016","Library Services","Global Budgets","R4309"
"Wolverhampton City Council","http://opendatacommunities.org/id/metropolitan-district-council/wolverhampton","W.F.Howes Limited","174585","87.20","Books","130140948","14/10/2016","Library Services","Global Budgets","R4309"
"Wolverhampton City Council","http://opendatacommunities.org/id/metropolitan-district-council/wolverhampton","W.F.Howes Limited","174581","124.80","Books","130140944","14/10/2016","Library Services","Global Budgets","R4309"
"Wolverhampton City Council","http://opendatacommunities.org/id/metropolitan-district-council/wolverhampton","W.F.Howes Limited","174579","31.20","Books","130140942","14/10/2016","Library Services","Global Budgets","R4309"
"Wolverhampton City Council","http://opendatacommunities.org/id/metropolitan-district-council/wolverhampton","W.F.Howes Limited","174583","31.20","Books","130140946","14/10/2016","Library Services","Global Budgets","R4309"
"Wolverhampton City Council","http://opendatacommunities.org/id/metropolitan-district-council/wolverhampton","W.F.Howes Limited","174580","62.40","Books","130140943","14/10/2016","Library Services","Global Budgets","R4309"
"Wolverhampton City Council","http://opendatacommunities.org/id/metropolitan-district-council/wolverhampton","W.V.Howe Limited","210727","92.60","Equipment - Catering","130139868","07/10/2016","Catering","Education Catering - General Overheads","R4010"
"Wolverhampton City Council","http://opendatacommunities.org/id/metropolitan-district-council/wolverhampton","W.V.Howe Limited","209962","197.69","Equipment - Catering","130137969","07/10/2016","Catering","Education Catering - General Overheads","R4010"
"Wolverhampton City Council","http://opendatacommunities.org/id/metropolitan-district-council/wolverhampton","W.V.Howe Limited","209963","746.36","Equipment - Catering","130137970","05/10/2016","Catering","Education Catering - General Overheads","R4010"
"Wolverhampton City Council","http://opendatacommunities.org/id/metropolitan-district-council/wolverhampton","W.V.Howe Limited","211380","77.90","Equipment - Catering","130141971","26/10/2016","Learning Disability Provider","Support Plus","R4010"
"Wolverhampton City Council","http://opendatacommunities.org/id/metropolitan-district-council/wolverhampton","W.V.Howe Limited","211397","140.22","Equipment - Catering","130141972","26/10/2016","Catering","Education Catering - General Overheads","R4010"
"Wolverhampton City Council","http://opendatacommunities.org/id/metropolitan-district-council/wolverhampton","W.V.Howe Limited","211448","174.51","Equipment - Catering","130141973","21/10/2016","Catering","Education Catering - General Overheads","R4010"
"Wolverhampton City Council","http://opendatacommunities.org/id/metropolitan-district-council/wolverhampton","W.V.Howe Limited","210692","110.17","Equipment - Catering","130139865","28/10/2016","Catering","Education Catering - General Overheads","R4010"
"Wolverhampton City Council","http://opendatacommunities.org/id/metropolitan-district-council/wolverhampton","W.V.Howe Limited","210691","671.13","Equipment - Catering","130139864","14/10/2016","Catering","Education Catering - General Overheads","R4010"
"Wolverhampton City Council","http://opendatacommunities.org/id/metropolitan-district-council/wolverhampton","Warners Private Hire","35","1,672.00","Client Transport","130140528","26/10/2016","School Planning & Resources","Special - Transport","R3042"
"Wolverhampton City Council","http://opendatacommunities.org/id/metropolitan-district-council/wolverhampton","Waterstones Booksellers Limited","3081302676","324.87","Books","130140052","26/10/2016","Adult Education","Foundation Studies Delivery Area","R4309"
"Wolverhampton City Council","http://opendatacommunities.org/id/metropolitan-district-council/wolverhampton","Waterstones Booksellers Limited","3081302676","-48.73","Books","130140052","26/10/2016","Adult Education","Foundation Studies Delivery Area","R4309"
"Wolverhampton City Council","http://opendatacommunities.org/id/metropolitan-district-council/wolverhampton","Waterstones Booksellers Limited","3081302599","167.76","Books","130138674","14/10/2016","Adult Education","Work Related Studies","R4309"
"Wolverhampton City Council","http://opendatacommunities.org/id/metropolitan-district-council/wolverhampton","Wates Construction Limited","98637","220,259.00","Construction and Conversion","130142260","26/10/2016","","Merridale Court","C1100"
"Wolverhampton City Council","http://opendatacommunities.org/id/metropolitan-district-council/wolverhampton","Wates Construction Limited","98672","553,481.00","Construction and Conversion","130142261","26/10/2016","","Decent Homes - Stock Improvements","C1100"
"Wolverhampton City Council","http://opendatacommunities.org/id/metropolitan-district-council/wolverhampton","Wates Construction Limited","98671","118,796.00","Construction and Conversion","130141809","21/10/2016","","Fire Safety Improvements","C1100"
"Wolverhampton City Council","http://opendatacommunities.org/id/metropolitan-district-council/wolverhampton","Wates Construction Limited","98674","271,669.00","Construction and Conversion","130141810","21/10/2016","","Roof Refurbishment Programme","C1100"
"Wolverhampton City Council","http://opendatacommunities.org/id/metropolitan-district-council/wolverhampton","Watts Urethane Products Limited","119711","6,104.50","Materials","130140759","26/10/2016","Highways Maintenance","Fencing & Guard Rails","R4007"
"Wolverhampton City Council","http://opendatacommunities.org/id/metropolitan-district-council/wolverhampton","WBP Visual Solutions Limited","110252","429.50","Printing","130140494","12/10/2016","Visitor Economy","Contemporary Craft - NPO ACE BCG","R4300"
"Wolverhampton City Council","http://opendatacommunities.org/id/metropolitan-district-council/wolverhampton","WBP Visual Solutions Limited","110262","96.00","Services - Professional Fees","130140495","14/10/2016","Visitor Economy","Bilston Craft Cafe Project - NPO ACS BCG","R4400"
"Wolverhampton City Council","http://opendatacommunities.org/id/metropolitan-district-council/wolverhampton","Weatherite Aluminium Solutions Ltd","040827","150.00","R&M - Departmental planned (external)","130139545","14/10/2016","Maintenance Programme","Centralised R&M","R2001"
"Wolverhampton City Council","http://opendatacommunities.org/id/metropolitan-district-council/wolverhampton","Webgibb Welding Limited","C6664","165.00","Services - Professional Fees","130141462","26/10/2016","Visitor Economy","Outdoor Events Admin","R4400"
"Wolverhampton City Council","http://opendatacommunities.org/id/metropolitan-district-council/wolverhampton","Webgibb Welding Limited","C6665","200.00","Equipment - Purchase","130141811","26/10/2016","Visitor Economy","Hickman Park - Bonfire","R4000"
"Wolverhampton City Council","http://opendatacommunities.org/id/metropolitan-district-council/wolverhampton","Wednesfield High S E A","SEN High Incidence Payment 2016-17","5,085.00","Grant Payments","190277225","21/10/2016","Schools","High Incidence SEN","R4700"
"Wolverhampton City Council","http://opendatacommunities.org/id/metropolitan-district-council/wolverhampton","Weight Watchers UK Limited","202578","2,109.00","TPP - Public Health Contracts","130139862","26/10/2016","Contracts","Healthy Lifestyles","R5060"
"Wolverhampton City Council","http://opendatacommunities.org/id/metropolitan-district-council/wolverhampton","Weight Watchers UK Limited","202578","-2,109.00","TPP - Public Health Contracts","130139862","26/10/2016","Contracts","Healthy Lifestyles","R5060"
"Wolverhampton City Council","http://opendatacommunities.org/id/metropolitan-district-council/wolverhampton","Weight Watchers UK Limited","202578","2,109.00","TPP - Public Health Contracts","130139862","26/10/2016","Contracts","Healthy Lifestyles","R5060"
"Wolverhampton City Council","http://opendatacommunities.org/id/metropolitan-district-council/wolverhampton","Wernick Hire Limited","566588","8,012.13","Plant, Equipment, Machinery & Computer Hardware","130135695","05/10/2016","","Primary Expansion Programme","C3000"
"Wolverhampton City Council","http://opendatacommunities.org/id/metropolitan-district-council/wolverhampton","West Midlands Employers","WOL_000754","200.00","Staff Advertising Costs","130142404","26/10/2016","The Hub","Central Advertising","R1700"
"Wolverhampton City Council","http://opendatacommunities.org/id/metropolitan-district-council/wolverhampton","West Midlands Employers","JB000651","200.00","Staff Advertising Costs","130140402","12/10/2016","The Hub","Central Advertising","R1700"
"Wolverhampton City Council","http://opendatacommunities.org/id/metropolitan-district-council/wolverhampton","West Midlands Employers","5158","2,670.37","Gratuities","130142552","28/10/2016","Central Corporate Budgets","Pension Enhancements [Pensions Fund]","R1402"
"Wolverhampton City Council","http://opendatacommunities.org/id/metropolitan-district-council/wolverhampton","West Midlands Fire Service","600036161","25.00","Room Hire","130140800","26/10/2016","Early Intervention","EIP Locality 7","R2201"
"Wolverhampton City Council","http://opendatacommunities.org/id/metropolitan-district-council/wolverhampton","West Midlands Police","13 7 2 32","45.00","Marketing \ Non-staff advertising","130140615","12/10/2016","Leisure Services","WV Active Business Support","R4317"
"Wolverhampton City Council","http://opendatacommunities.org/id/metropolitan-district-council/wolverhampton","West Midlands Travel Limited","XASI/00092734","240.00","Public Transport","130138444","07/10/2016","School Planning & Resources","Secondary- Transport","R3300"
"Wolverhampton City Council","http://opendatacommunities.org/id/metropolitan-district-council/wolverhampton","West Midlands Travel Limited","4118777","835.50","Public Transport","130141197","26/10/2016","School Planning & Resources","Secondary- Transport","R3300"
"Wolverhampton City Council","http://opendatacommunities.org/id/metropolitan-district-council/wolverhampton","West Midlands Travel Limited","SLIN/00034842","485.85","Client Transport","130139778","21/10/2016","Youth Offending","Youth Offending Team","R3042"
"Wolverhampton City Council","http://opendatacommunities.org/id/metropolitan-district-council/wolverhampton","West Midlands Travel Limited","XASI/00093072","392.00","Public Transport","130140198","21/10/2016","School Planning & Resources","Secondary- Transport","R3300"
"Wolverhampton City Council","http://opendatacommunities.org/id/metropolitan-district-council/wolverhampton","West Midlands Travel Limited","XASI/00092902","1,054.50","Public Transport","130138445","14/10/2016","School Planning & Resources","Secondary- Transport","R3300"
"Wolverhampton City Council","http://opendatacommunities.org/id/metropolitan-district-council/wolverhampton","West Midlands Travel Limited","SLIN/00034760","669.75","Payroll Control Account - Travel Card Scheme","130138286","14/10/2016","","General Fund Balance Sheet","B3350"
"Wolverhampton City Council","http://opendatacommunities.org/id/metropolitan-district-council/wolverhampton","West Midlands Travel Limited","SLIN/00034760","-669.75","Payroll Control Account - Travel Card Scheme","130138286","14/10/2016","","General Fund Balance Sheet","B3350"
"Wolverhampton City Council","http://opendatacommunities.org/id/metropolitan-district-council/wolverhampton","West Midlands Travel Limited","SLIN/00034760","669.75","Payroll Control Account - Travel Card Scheme","130138286","14/10/2016","","General Fund Balance Sheet","B3350"
"Wolverhampton City Council","http://opendatacommunities.org/id/metropolitan-district-council/wolverhampton","WHampton Homes Limited-Property Service","2600016318","685.84","Grants paid out","130137666","07/10/2016","","Housing General Fund General Schemes - Small Works Assistance (SWA)","C5000"
"Wolverhampton City Council","http://opendatacommunities.org/id/metropolitan-district-council/wolverhampton","WHampton Homes Limited-Property Service","2600011787","32,130.94","Construction and Conversion","130138336","05/10/2016","","Adaptations for People with Disabilites","C1100"
"Wolverhampton City Council","http://opendatacommunities.org/id/metropolitan-district-council/wolverhampton","WHampton Homes Limited-Property Service","2600011787","-32,130.94","Construction and Conversion","130138336","05/10/2016","","Adaptations for People with Disabilites","C1100"
"Wolverhampton City Council","http://opendatacommunities.org/id/metropolitan-district-council/wolverhampton","WHampton Homes Limited-Property Service","2600011787","32,130.94","Construction and Conversion","130138336","05/10/2016","","Adaptations for People with Disabilites","C1100"
"Wolverhampton City Council","http://opendatacommunities.org/id/metropolitan-district-council/wolverhampton","WHampton Homes Limited-Property Service","2600016630","3,412.97","Construction and Conversion","130138956","26/10/2016","","Adaptations for People with Disabilites","C1100"
"Wolverhampton City Council","http://opendatacommunities.org/id/metropolitan-district-council/wolverhampton","WHampton Homes Limited-Property Service","260001672X","85.73","Grants paid out","130139871","26/10/2016","","Housing General Fund General Schemes - Small Works Assistance (SWA)","C5000"
"Wolverhampton City Council","http://opendatacommunities.org/id/metropolitan-district-council/wolverhampton","WHampton Homes Limited-Property Service","2600016612","5,125.07","Construction and Conversion","130138954","26/10/2016","","Adaptations for People with Disabilites","C1100"
"Wolverhampton City Council","http://opendatacommunities.org/id/metropolitan-district-council/wolverhampton","WHampton Homes Limited-Property Service","2600016621","2,479.02","Construction and Conversion","130138955","26/10/2016","","Adaptations for People with Disabilites","C1100"
"Wolverhampton City Council","http://opendatacommunities.org/id/metropolitan-district-council/wolverhampton","Whats On Guide (City Guides UK Limited)","11920","300.00","Marketing \ Non-staff advertising","130140199","07/10/2016","Licensing","Licensing - H.Carriage/Pr.Hire Vehicles","R4317"
"Wolverhampton City Council","http://opendatacommunities.org/id/metropolitan-district-council/wolverhampton","Whats On Magazines Group Limited","12101","500.00","Marketing \ Non-staff advertising","130140760","28/10/2016","Visitor Economy","Visitor Economy - Development","R4317"
"Wolverhampton City Council","http://opendatacommunities.org/id/metropolitan-district-council/wolverhampton","Whats On Magazines Group Limited","12101","-500.00","Marketing \ Non-staff advertising","130140760","28/10/2016","Visitor Economy","Visitor Economy - Development","R4317"
"Wolverhampton City Council","http://opendatacommunities.org/id/metropolitan-district-council/wolverhampton","Whats On Magazines Group Limited","12101","500.00","Marketing \ Non-staff advertising","130140760","28/10/2016","Visitor Economy","Visitor Economy - Development","R4317"
"Wolverhampton City Council","http://opendatacommunities.org/id/metropolitan-district-council/wolverhampton","Wildside Activity Centre","16/2090","138.50","Training Expenses","130139328","21/10/2016","Audit Services","Site Management Health & Safety","R1650"
"Wolverhampton City Council","http://opendatacommunities.org/id/metropolitan-district-council/wolverhampton","Willenhall Engine Centre","62728","208.67","Services - Professional Fees","190277650","21/10/2016","Fleet Services","Fleet Management","R4400"
"Wolverhampton City Council","http://opendatacommunities.org/id/metropolitan-district-council/wolverhampton","William Gough & Sons Limited","19568","6,293.00","Construction and Conversion","130137801","14/10/2016","","Corporate Asset Management","C1100"
"Wolverhampton City Council","http://opendatacommunities.org/id/metropolitan-district-council/wolverhampton","William Gough & Sons Limited","19527","920.00","Construction and Conversion","130136383","19/10/2016","","Universal Infant Free School Meals","C1100"
"Wolverhampton City Council","http://opendatacommunities.org/id/metropolitan-district-council/wolverhampton","William Gough Limited","80869","217.11","R&M - Departmental planned (external)","130139650","07/10/2016","Maintenance Programme","Centralised R&M","R2001"
"Wolverhampton City Council","http://opendatacommunities.org/id/metropolitan-district-council/wolverhampton","William Gough Limited","80847","4,171.76","Construction and Conversion","130138990","05/10/2016","","Corporate Asset Management","C1100"
"Wolverhampton City Council","http://opendatacommunities.org/id/metropolitan-district-council/wolverhampton","William Gough Limited","80854","1,041.46","Construction and Conversion","130138992","05/10/2016","","Primary Expansion Programme","C1100"
"Wolverhampton City Council","http://opendatacommunities.org/id/metropolitan-district-council/wolverhampton","William Gough Limited","80736","86.77","R&M - Departmental planned (external)","130136125","05/10/2016","Markets","Bilston Market and Licensed Operations","R2001"
"Wolverhampton City Council","http://opendatacommunities.org/id/metropolitan-district-council/wolverhampton","William Gough Limited","80738","75.37","R&M - Departmental planned (external)","130136127","05/10/2016","Maintenance Programme","Centralised R&M","R2001"
"Wolverhampton City Council","http://opendatacommunities.org/id/metropolitan-district-council/wolverhampton","William Gough Limited","80739","135.44","R&M - Departmental planned (external)","130136128","05/10/2016","Maintenance Programme","Centralised R&M","R2001"
"Wolverhampton City Council","http://opendatacommunities.org/id/metropolitan-district-council/wolverhampton","William Gough Limited","80961","40.00","R&M - Departmental planned (external)","130141038","26/10/2016","Maintenance Programme","Asset Management Team","R2001"
"Wolverhampton City Council","http://opendatacommunities.org/id/metropolitan-district-council/wolverhampton","William Gough Limited","80948","80.40","R&M - Departmental planned (external)","130140684","26/10/2016","Markets","Bilston Market and Licensed Operations","R2001"
"Wolverhampton City Council","http://opendatacommunities.org/id/metropolitan-district-council/wolverhampton","William Gough Limited","80983","96.60","R&M - Departmental planned (external)","130142018","26/10/2016","Youth Services","Youth Service - Youth Council Support","R2001"
"Wolverhampton City Council","http://opendatacommunities.org/id/metropolitan-district-council/wolverhampton","William Gough Limited","80435","19,553.12","R&M - Departmental planned (external)","130130291","26/10/2016","Facilities Management","Management of Vacant Properties","R2001"
"Wolverhampton City Council","http://opendatacommunities.org/id/metropolitan-district-council/wolverhampton","William Gough Limited","80780","139.98","R&M - Departmental planned (external)","130137089","26/10/2016","Maintenance Programme","Centralised R&M","R2001"
"Wolverhampton City Council","http://opendatacommunities.org/id/metropolitan-district-council/wolverhampton","William Gough Limited","79834","276.45","R&M - Departmental planned (external)","130140091","26/10/2016","Facilities Management","Management of Vacant Properties","R2001"
"Wolverhampton City Council","http://opendatacommunities.org/id/metropolitan-district-council/wolverhampton","William Gough Limited","80943","309.67","R&M - Departmental planned (external)","130140680","26/10/2016","Maintenance Programme","Centralised R&M","R2001"
"Wolverhampton City Council","http://opendatacommunities.org/id/metropolitan-district-council/wolverhampton","William Gough Limited","80955","128.51","R&M - Departmental planned (external)","130141034","26/10/2016","Markets","Wolverhampton Indoor and Open Market","R2001"
"Wolverhampton City Council","http://opendatacommunities.org/id/metropolitan-district-council/wolverhampton","William Gough Limited","79840","50.37","R&M - Departmental planned (external)","130141791","21/10/2016","Maintenance Programme","Centralised R&M","R2001"
"Wolverhampton City Council","http://opendatacommunities.org/id/metropolitan-district-council/wolverhampton","William Gough Limited","80915","40.00","R&M - Departmental planned (external)","130140104","21/10/2016","Maintenance Programme","Asset Management Team","R2001"
"Wolverhampton City Council","http://opendatacommunities.org/id/metropolitan-district-council/wolverhampton","William Gough Limited","80954","2,182.95","Construction and Conversion","130141033","21/10/2016","","Corporate Asset Management","C1100"
"Wolverhampton City Council","http://opendatacommunities.org/id/metropolitan-district-council/wolverhampton","William Gough Limited","80701","40.00","R&M - Departmental planned (external)","130135180","12/10/2016","Facilities Management","Magistrates","R2001"
"Wolverhampton City Council","http://opendatacommunities.org/id/metropolitan-district-council/wolverhampton","William Gough Limited","80761","40.00","R&M - Departmental planned (external)","130136504","12/10/2016","Facilities Management","Magistrates","R2001"
"Wolverhampton City Council","http://opendatacommunities.org/id/metropolitan-district-council/wolverhampton","William Gough Limited","80760","40.00","R&M - Departmental planned (external)","130136503","12/10/2016","Facilities Management","Magistrates","R2001"
"Wolverhampton City Council","http://opendatacommunities.org/id/metropolitan-district-council/wolverhampton","William Gough Limited","80832","192.02","R&M - Departmental planned (external)","130138194","12/10/2016","Facilities Management","Civic Centre","R2001"
"Wolverhampton City Council","http://opendatacommunities.org/id/metropolitan-district-council/wolverhampton","William Gough Limited","80762","40.00","R&M - Departmental planned (external)","130136505","12/10/2016","Facilities Management","Magistrates","R2001"
"Wolverhampton City Council","http://opendatacommunities.org/id/metropolitan-district-council/wolverhampton","William Gough Limited","80440","1,887.18","R&M - Departmental planned (external)","130138190","12/10/2016","Corporate Asset Management","Future Space Decant Area","R2001"
"Wolverhampton City Council","http://opendatacommunities.org/id/metropolitan-district-council/wolverhampton","William Gough Limited","80438","2,054.00","R&M - Departmental planned (external)","130140094","12/10/2016","Early Intervention","HOS Early Intervention","R2001"
"Wolverhampton City Council","http://opendatacommunities.org/id/metropolitan-district-council/wolverhampton","William Gough Limited","80437","2,329.58","R&M - Departmental planned (external)","130140093","12/10/2016","Early Intervention","HOS Early Intervention","R2001"
"Wolverhampton City Council","http://opendatacommunities.org/id/metropolitan-district-council/wolverhampton","William Gough Limited","80163","142.01","R&M - Departmental planned (external)","130122801","12/10/2016","Maintenance Programme","Centralised R&M","R2001"
"Wolverhampton City Council","http://opendatacommunities.org/id/metropolitan-district-council/wolverhampton","William Gough Limited","80505","179.70","R&M - Departmental planned (external)","130131306","12/10/2016","Maintenance Programme","Centralised R&M","R2001"
"Wolverhampton City Council","http://opendatacommunities.org/id/metropolitan-district-council/wolverhampton","William Gough Limited","80176","84.92","R&M - Departmental planned (external)","130122811","12/10/2016","Maintenance Programme","Centralised R&M","R2001"
"Wolverhampton City Council","http://opendatacommunities.org/id/metropolitan-district-council/wolverhampton","William Gough Limited","80904","75.37","R&M - Departmental planned (external)","130140101","12/10/2016","Maintenance Programme","Centralised R&M","R2001"
"Wolverhampton City Council","http://opendatacommunities.org/id/metropolitan-district-council/wolverhampton","William Gough Limited","80687","4,924.44","R&M - Departmental planned (external)","130135172","12/10/2016","Facilities Management","Magistrates","R2001"
"Wolverhampton City Council","http://opendatacommunities.org/id/metropolitan-district-council/wolverhampton","William Gough Limited","80564","185.82","R&M - Departmental planned (external)","130132281","12/10/2016","Maintenance Programme","Centralised R&M","R2001"
"Wolverhampton City Council","http://opendatacommunities.org/id/metropolitan-district-council/wolverhampton","William Gough Limited","C2286","-96.67","R&M - Departmental planned (external)","130133191","12/10/2016","Maintenance Programme","Centralised R&M","R2001"
"Wolverhampton City Council","http://opendatacommunities.org/id/metropolitan-district-council/wolverhampton","William Gough Limited","80612","189.40","R&M - Departmental planned (external)","130133180","12/10/2016","Maintenance Programme","Centralised R&M","R2001"
"Wolverhampton City Council","http://opendatacommunities.org/id/metropolitan-district-council/wolverhampton","William Gough Limited","80643","55.89","R&M - Departmental planned (external)","130134711","12/10/2016","Maintenance Programme","Centralised R&M","R2001"
"Wolverhampton City Council","http://opendatacommunities.org/id/metropolitan-district-council/wolverhampton","William Gough Limited","80606","40.00","R&M - Departmental planned (external)","130133177","12/10/2016","Maintenance Programme","Centralised R&M","R2001"
"Wolverhampton City Council","http://opendatacommunities.org/id/metropolitan-district-council/wolverhampton","William Gough Limited","80831","141.54","R&M - Departmental planned (external)","130138193","12/10/2016","Facilities Management","Civic Centre","R2001"
"Wolverhampton City Council","http://opendatacommunities.org/id/metropolitan-district-council/wolverhampton","William Gough Limited","80362","2,372.53","R&M - Departmental planned (external)","130126786","12/10/2016","Facilities Management","Parkfields Office Accomodation","R2001"
"Wolverhampton City Council","http://opendatacommunities.org/id/metropolitan-district-council/wolverhampton","William Gough Limited","80906","1,266.73","R&M - Departmental planned (external)","130140102","12/10/2016","Facilities Management","Civic Centre","R2001"
"Wolverhampton City Council","http://opendatacommunities.org/id/metropolitan-district-council/wolverhampton","William Gough Limited","80898","40.00","R&M - Departmental planned (external)","130140097","12/10/2016","Facilities Management","Civic Centre","R2001"
"Wolverhampton City Council","http://opendatacommunities.org/id/metropolitan-district-council/wolverhampton","William Gough Limited","80921","117.95","R&M - Departmental planned (external)","130140107","12/10/2016","Maintenance Programme","Centralised R&M","R2001"
"Wolverhampton City Council","http://opendatacommunities.org/id/metropolitan-district-council/wolverhampton","William Gough Limited","79836","200.01","R&M - Departmental planned (external)","130137704","12/10/2016","Maintenance Programme","Centralised R&M","R2001"
"Wolverhampton City Council","http://opendatacommunities.org/id/metropolitan-district-council/wolverhampton","William Gough Limited","80822","379.76","R&M - Departmental planned (external)","130138016","12/10/2016","Markets","Wolverhampton Indoor and Open Market","R2001"
"Wolverhampton City Council","http://opendatacommunities.org/id/metropolitan-district-council/wolverhampton","William Gough Limited","80725","314.77","R&M - Departmental planned (external)","130140307","12/10/2016","Markets","Bilston Market and Licensed Operations","R2001"
"Wolverhampton City Council","http://opendatacommunities.org/id/metropolitan-district-council/wolverhampton","William Gough Limited","79312","65.97","R&M - Departmental planned (external)","130137701","12/10/2016","Maintenance Programme","Centralised R&M","R2001"
"Wolverhampton City Council","http://opendatacommunities.org/id/metropolitan-district-council/wolverhampton","William Gough Limited","80932","117.18","R&M - Departmental planned (external)","130140676","28/10/2016","Maintenance Programme","Centralised R&M","R2001"
"Wolverhampton City Council","http://opendatacommunities.org/id/metropolitan-district-council/wolverhampton","William Gough Limited","80839","162.65","R&M - Departmental planned (external)","130138201","28/10/2016","Facilities Management","Magistrates","R2001"
"Wolverhampton City Council","http://opendatacommunities.org/id/metropolitan-district-council/wolverhampton","William Gough Limited","80820","82.11","R&M - Departmental planned (external)","130138014","28/10/2016","Maintenance Programme","Centralised R&M","R2001"
"Wolverhampton City Council","http://opendatacommunities.org/id/metropolitan-district-council/wolverhampton","William Gough Limited","80924","75.37","R&M - Departmental planned (external)","130140110","28/10/2016","Facilities Management","Public Conveniences","R2001"
"Wolverhampton City Council","http://opendatacommunities.org/id/metropolitan-district-council/wolverhampton","William Gough Limited","80933","342.60","R&M - Departmental planned (external)","130140677","28/10/2016","Maintenance Programme","Centralised R&M","R2001"
"Wolverhampton City Council","http://opendatacommunities.org/id/metropolitan-district-council/wolverhampton","William Gough Limited","80958","40.00","R&M - Departmental planned (external)","130141036","28/10/2016","Maintenance Programme","Centralised R&M","R2001"
"Wolverhampton City Council","http://opendatacommunities.org/id/metropolitan-district-council/wolverhampton","William Gough Limited","80946","370.59","R&M - Departmental planned (external)","130140682","28/10/2016","Facilities Management","Civic Centre","R2001"
"Wolverhampton City Council","http://opendatacommunities.org/id/metropolitan-district-council/wolverhampton","William Gough Limited","80859","20,000.00","Construction and Conversion","130139646","28/10/2016","","Schools Devolved Formula Capital","C1100"
"Wolverhampton City Council","http://opendatacommunities.org/id/metropolitan-district-council/wolverhampton","William Gough Limited","80686","3,566.16","R&M - Departmental planned (external)","130135171","28/10/2016","Facilities Management","Magistrates","R2001"
"Wolverhampton City Council","http://opendatacommunities.org/id/metropolitan-district-council/wolverhampton","William Gough Limited","C2292","-417.29","R&M - Departmental planned (external)","130139013","28/10/2016","Facilities Management","Magistrates","R2001"
"Wolverhampton City Council","http://opendatacommunities.org/id/metropolitan-district-council/wolverhampton","William Gough Limited","80973","4,195.77","R&M - Departmental planned (external)","130142015","28/10/2016","Maintenance Programme","Centralised R&M","R2001"
"Wolverhampton City Council","http://opendatacommunities.org/id/metropolitan-district-council/wolverhampton","William Gough Limited","80860","27,300.00","Construction and Conversion","130139647","28/10/2016","","Co-Location Programme","C1100"
"Wolverhampton City Council","http://opendatacommunities.org/id/metropolitan-district-council/wolverhampton","William Gough Limited","80944","127.96","R&M - Departmental planned (external)","130140681","28/10/2016","Facilities Management","Magistrates","R2001"
"Wolverhampton City Council","http://opendatacommunities.org/id/metropolitan-district-council/wolverhampton","William Gough Limited","80957","40.00","R&M - Departmental planned (external)","130141035","28/10/2016","Maintenance Programme","Centralised R&M","R2001"
"Wolverhampton City Council","http://opendatacommunities.org/id/metropolitan-district-council/wolverhampton","William Gough Limited","80925","40.00","R&M - Departmental planned (external)","130140111","28/10/2016","Maintenance Programme","Centralised R&M","R2001"
"Wolverhampton City Council","http://opendatacommunities.org/id/metropolitan-district-council/wolverhampton","William Gough Limited","80840","40.00","R&M - Departmental planned (external)","130138202","28/10/2016","Bereavement Services","Cemeteries","R2001"
"Wolverhampton City Council","http://opendatacommunities.org/id/metropolitan-district-council/wolverhampton","William Gough Limited","80934","73.70","R&M - Departmental planned (external)","130140678","28/10/2016","Maintenance Programme","Centralised R&M","R2001"
"Wolverhampton City Council","http://opendatacommunities.org/id/metropolitan-district-council/wolverhampton","William Gough Limited","80836","522.54","R&M - Departmental planned (external)","130138198","28/10/2016","Maintenance Programme","Centralised R&M","R2001"
"Wolverhampton City Council","http://opendatacommunities.org/id/metropolitan-district-council/wolverhampton","William Gough Limited","80947","160.79","R&M - Departmental planned (external)","130140683","28/10/2016","Maintenance Programme","Centralised R&M","R2001"
"Wolverhampton City Council","http://opendatacommunities.org/id/metropolitan-district-council/wolverhampton","William Gough Limited","80962","55.27","R&M - Departmental planned (external)","130141039","28/10/2016","Maintenance Programme","Centralised R&M","R2001"
"Wolverhampton City Council","http://opendatacommunities.org/id/metropolitan-district-council/wolverhampton","William Gough Limited","80169","417.29","R&M - Departmental planned (external)","130122804","28/10/2016","Facilities Management","Magistrates","R2001"
"Wolverhampton City Council","http://opendatacommunities.org/id/metropolitan-district-council/wolverhampton","William Gough Limited","80927","40.00","R&M - Departmental planned (external)","130140112","28/10/2016","Facilities Management","Magistrates","R2001"
"Wolverhampton City Council","http://opendatacommunities.org/id/metropolitan-district-council/wolverhampton","William Gough Limited","80691","6,527.15","Construction and Conversion","130135173","19/10/2016","","Capital Maintenance - Fire Safety","C1100"
"Wolverhampton City Council","http://opendatacommunities.org/id/metropolitan-district-council/wolverhampton","William Gough Limited","80800","1,910.79","R&M - Departmental planned (external)","130137853","19/10/2016","Facilities Management","Magistrates","R2001"
"Wolverhampton City Council","http://opendatacommunities.org/id/metropolitan-district-council/wolverhampton","William Gough Limited","80922","142.09","R&M - Departmental planned (external)","130140108","19/10/2016","Maintenance Programme","Centralised R&M","R2001"
"Wolverhampton City Council","http://opendatacommunities.org/id/metropolitan-district-council/wolverhampton","William Gough Limited","80919","261.55","R&M - Departmental planned (external)","130140106","19/10/2016","Maintenance Programme","Centralised R&M","R2001"
"Wolverhampton City Council","http://opendatacommunities.org/id/metropolitan-district-council/wolverhampton","William Gough Limited","80923","160.41","R&M - Departmental planned (external)","130140109","19/10/2016","Maintenance Programme","Centralised R&M","R2001"
"Wolverhampton City Council","http://opendatacommunities.org/id/metropolitan-district-council/wolverhampton","William Gough Limited","80841","797.18","R&M - Departmental planned (external)","130138203","19/10/2016","Maintenance Programme","Centralised R&M","R2001"
"Wolverhampton City Council","http://opendatacommunities.org/id/metropolitan-district-council/wolverhampton","William Gough Limited","80838","356.91","R&M - Departmental planned (external)","130138200","19/10/2016","Markets","Wolverhampton Indoor and Open Market","R2001"
"Wolverhampton City Council","http://opendatacommunities.org/id/metropolitan-district-council/wolverhampton","William Gough Limited","80894","509.17","R&M - Departmental planned (external)","130140095","19/10/2016","Facilities Management","Civic Centre","R2001"
"Wolverhampton City Council","http://opendatacommunities.org/id/metropolitan-district-council/wolverhampton","William Gough Limited","80783","40.00","R&M - Departmental planned (external)","130137092","19/10/2016","Maintenance Programme","Centralised R&M","R2001"
"Wolverhampton City Council","http://opendatacommunities.org/id/metropolitan-district-council/wolverhampton","William Gough Limited","80781","152.81","R&M - Departmental planned (external)","130137090","19/10/2016","Maintenance Programme","Centralised R&M","R2001"
"Wolverhampton City Council","http://opendatacommunities.org/id/metropolitan-district-council/wolverhampton","William Gough Limited","80782","158.28","R&M - Departmental planned (external)","130137091","19/10/2016","Maintenance Programme","Centralised R&M","R2001"
"Wolverhampton City Council","http://opendatacommunities.org/id/metropolitan-district-council/wolverhampton","William Gough Limited","80779","87.94","R&M - Departmental planned (external)","130137088","19/10/2016","Facilities Management","Civic Centre","R2001"
"Wolverhampton City Council","http://opendatacommunities.org/id/metropolitan-district-council/wolverhampton","William Gough Limited","79839","719.50","R&M - Departmental planned (external)","130137705","19/10/2016","Maintenance Programme","Centralised R&M","R2001"
"Wolverhampton City Council","http://opendatacommunities.org/id/metropolitan-district-council/wolverhampton","William Gough Limited","80697","36,415.51","Construction and Conversion","130138191","19/10/2016","","Capital Maintenance - Structural Works","C1100"
"Wolverhampton City Council","http://opendatacommunities.org/id/metropolitan-district-council/wolverhampton","William Gough Limited","80669","45,369.88","Construction and Conversion","130135168","19/10/2016","","Capital Maintenance - Roof / Ceilings Replacements","C1100"
"Wolverhampton City Council","http://opendatacommunities.org/id/metropolitan-district-council/wolverhampton","William Gough Limited","80692","16,154.92","R&M - Departmental planned (external)","130135174","19/10/2016","Bereavement Services","Crematorium","R2001"
"Wolverhampton City Council","http://opendatacommunities.org/id/metropolitan-district-council/wolverhampton","William Gough Limited","80696","48,249.31","Construction and Conversion","130135177","19/10/2016","","Capital Maintenance - Structural Works","C1100"
"Wolverhampton City Council","http://opendatacommunities.org/id/metropolitan-district-council/wolverhampton","William Gough Limited","80695","34,886.42","Construction and Conversion","130137084","19/10/2016","","Capital Maintenance - Roof / Ceilings Replacements","C1100"
"Wolverhampton City Council","http://opendatacommunities.org/id/metropolitan-district-council/wolverhampton","William Gough Limited","80967","169.37","R&M - Departmental planned (external)","130141042","19/10/2016","Early Intervention","HOS Early Intervention","R2001"
"Wolverhampton City Council","http://opendatacommunities.org/id/metropolitan-district-council/wolverhampton","William Gough Limited","80801","2,096.00","R&M - Departmental planned (external)","130137854","19/10/2016","Facilities Management","Magistrates","R2001"
"Wolverhampton City Council","http://opendatacommunities.org/id/metropolitan-district-council/wolverhampton","William Gough Limited","80916","142.09","R&M - Departmental planned (external)","130140105","19/10/2016","Maintenance Programme","Centralised R&M","R2001"
"Wolverhampton City Council","http://opendatacommunities.org/id/metropolitan-district-council/wolverhampton","William Gough Limited","80886","40.00","R&M - Departmental planned (external)","130139915","19/10/2016","Maintenance Programme","Centralised R&M","R2001"
"Wolverhampton City Council","http://opendatacommunities.org/id/metropolitan-district-council/wolverhampton","William Gough Limited","80903","43.68","R&M - Departmental planned (external)","130140100","19/10/2016","Maintenance Programme","Centralised R&M","R2001"
"Wolverhampton City Council","http://opendatacommunities.org/id/metropolitan-district-council/wolverhampton","William Gough Limited","80965","40.00","R&M - Departmental planned (external)","130141040","19/10/2016","Maintenance Programme","Centralised R&M","R2001"
"Wolverhampton City Council","http://opendatacommunities.org/id/metropolitan-district-council/wolverhampton","William Gough Limited","80966","40.00","R&M - Departmental planned (external)","130141041","19/10/2016","Maintenance Programme","Centralised R&M","R2001"
"Wolverhampton City Council","http://opendatacommunities.org/id/metropolitan-district-council/wolverhampton","William Gough Limited","80743","49.98","R&M - Departmental planned (external)","130136252","19/10/2016","Maintenance Programme","Centralised R&M","R2001"
"Wolverhampton City Council","http://opendatacommunities.org/id/metropolitan-district-council/wolverhampton","William Gough Limited","80968","50.33","R&M - Departmental planned (external)","130141043","19/10/2016","Facilities Management","Civic Centre","R2001"
"Wolverhampton City Council","http://opendatacommunities.org/id/metropolitan-district-council/wolverhampton","William Gough Limited","80928","176.34","R&M - Departmental planned (external)","130140113","14/10/2016","Cleaning","Priory Green","R2001"
"Wolverhampton City Council","http://opendatacommunities.org/id/metropolitan-district-council/wolverhampton","William Gough Limited","80861","111.85","R&M - Departmental planned (external)","130139648","14/10/2016","Facilities Management","Magistrates","R2001"
"Wolverhampton City Council","http://opendatacommunities.org/id/metropolitan-district-council/wolverhampton","William Gough Limited","80889","107.06","R&M - Departmental planned (external)","130139917","14/10/2016","Bereavement Services","Cemeteries","R2001"
"Wolverhampton City Council","http://opendatacommunities.org/id/metropolitan-district-council/wolverhampton","William Gough Limited","80668","162.67","R&M - Departmental planned (external)","130134839","14/10/2016","Facilities Management","Magistrates","R2001"
"Wolverhampton City Council","http://opendatacommunities.org/id/metropolitan-district-council/wolverhampton","William Gough Limited","80659","140.31","R&M - Departmental planned (external)","130134830","14/10/2016","Maintenance Programme","Centralised R&M","R2001"
"Wolverhampton City Council","http://opendatacommunities.org/id/metropolitan-district-council/wolverhampton","William Gough Limited","80706","160.24","R&M - Departmental planned (external)","130135505","14/10/2016","Maintenance Programme","Centralised R&M","R2001"
"Wolverhampton City Council","http://opendatacommunities.org/id/metropolitan-district-council/wolverhampton","William Gough Limited","80745","81.06","R&M - Departmental planned (external)","130136254","14/10/2016","Maintenance Programme","Centralised R&M","R2001"
"Wolverhampton City Council","http://opendatacommunities.org/id/metropolitan-district-council/wolverhampton","William Gough Limited","80660","49.88","R&M - Departmental planned (external)","130134831","14/10/2016","Maintenance Programme","Centralised R&M","R2001"
"Wolverhampton City Council","http://opendatacommunities.org/id/metropolitan-district-council/wolverhampton","William Gough Limited","80667","50.40","R&M - Departmental planned (external)","130134838","14/10/2016","Maintenance Programme","Centralised R&M","R2001"
"Wolverhampton City Council","http://opendatacommunities.org/id/metropolitan-district-council/wolverhampton","William Gough Limited","80636","76.55","R&M - Departmental planned (external)","130134706","14/10/2016","Maintenance Programme","Centralised R&M","R2001"
"Wolverhampton City Council","http://opendatacommunities.org/id/metropolitan-district-council/wolverhampton","William Gough Limited","80803","1,977.71","R&M - Departmental planned (external)","130137855","14/10/2016","Maintenance Programme","Centralised R&M","R2001"
"Wolverhampton City Council","http://opendatacommunities.org/id/metropolitan-district-council/wolverhampton","William Gough Limited","80807","1,798.72","R&M - Departmental planned (external)","130137858","14/10/2016","Maintenance Programme","Centralised R&M","R2001"
"Wolverhampton City Council","http://opendatacommunities.org/id/metropolitan-district-council/wolverhampton","William Gough Limited","80288","56.20","R&M - Departmental planned (external)","130125087","14/10/2016","Facilities Management","Magistrates","R2001"
"Wolverhampton City Council","http://opendatacommunities.org/id/metropolitan-district-council/wolverhampton","William Gough Limited","80152","121.28","R&M - Departmental planned (external)","130122790","14/10/2016","Maintenance Programme","Centralised R&M","R2001"
"Wolverhampton City Council","http://opendatacommunities.org/id/metropolitan-district-council/wolverhampton","William Gough Limited","79877","5,056.35","R&M - Departmental planned (external)","130136502","14/10/2016","Facilities Management","Civic Centre","R2001"
"Wolverhampton City Council","http://opendatacommunities.org/id/metropolitan-district-council/wolverhampton","William Gough Limited","80475","109.51","R&M - Departmental planned (external)","130137850","14/10/2016","Maintenance Programme","Centralised R&M","R2001"
"Wolverhampton City Council","http://opendatacommunities.org/id/metropolitan-district-council/wolverhampton","William Gough Limited","79830","112.79","R&M - Departmental planned (external)","130137703","14/10/2016","Maintenance Programme","Centralised R&M","R2001"
"Wolverhampton City Council","http://opendatacommunities.org/id/metropolitan-district-council/wolverhampton","William Gough Limited","80834","40.00","R&M - Departmental planned (external)","130138196","14/10/2016","Maintenance Programme","Centralised R&M","R2001"
"Wolverhampton City Council","http://opendatacommunities.org/id/metropolitan-district-council/wolverhampton","William Gough Limited","80835","179.40","R&M - Departmental planned (external)","130138197","14/10/2016","Maintenance Programme","Centralised R&M","R2001"
"Wolverhampton City Council","http://opendatacommunities.org/id/metropolitan-district-council/wolverhampton","William Gough Limited","79970","198.48","R&M - Departmental planned (external)","130137849","14/10/2016","Bereavement Services","Cemeteries","R2001"
"Wolverhampton City Council","http://opendatacommunities.org/id/metropolitan-district-council/wolverhampton","William Gough Limited","80563","236.64","R&M - Departmental planned (external)","130132280","14/10/2016","Maintenance Programme","Centralised R&M","R2001"
"Wolverhampton City Council","http://opendatacommunities.org/id/metropolitan-district-council/wolverhampton","William Gough Limited","80809","165.13","R&M - Departmental planned (external)","130137859","14/10/2016","Maintenance Programme","Centralised R&M","R2001"
"Wolverhampton City Council","http://opendatacommunities.org/id/metropolitan-district-council/wolverhampton","William Gough Limited","80940","263.85","R&M - Departmental planned (external)","130140679","14/10/2016","Markets","Wednesfield Street Market","R2001"
"Wolverhampton City Council","http://opendatacommunities.org/id/metropolitan-district-council/wolverhampton","William Gough Limited","80805","176.86","R&M - Departmental planned (external)","130137857","14/10/2016","Maintenance Programme","Centralised R&M","R2001"
"Wolverhampton City Council","http://opendatacommunities.org/id/metropolitan-district-council/wolverhampton","William Gough Limited","79403","5,754.24","R&M - Departmental planned (external)","130107234","14/10/2016","City Development","Former Heath Town Baths and Library","R2001"
"Wolverhampton City Council","http://opendatacommunities.org/id/metropolitan-district-council/wolverhampton","William Gough Limited","80804","419.71","R&M - Departmental planned (external)","130137856","14/10/2016","Maintenance Programme","Centralised R&M","R2001"
"Wolverhampton City Council","http://opendatacommunities.org/id/metropolitan-district-council/wolverhampton","William Gough Limited","80909","150.75","R&M - Departmental planned (external)","130140103","14/10/2016","Maintenance Programme","Centralised R&M","R2001"
"Wolverhampton City Council","http://opendatacommunities.org/id/metropolitan-district-council/wolverhampton","William Gough Limited","80865","347.26","R&M - Departmental planned (external)","130139649","14/10/2016","Corporate Asset Management","Centralised Planned Maintenance","R2001"
"Wolverhampton City Council","http://opendatacommunities.org/id/metropolitan-district-council/wolverhampton","William Gough Limited","80875","696.93","R&M - Departmental planned (external)","130139652","14/10/2016","Maintenance Programme","Asset Management Team","R2001"
"Wolverhampton City Council","http://opendatacommunities.org/id/metropolitan-district-council/wolverhampton","William Gough Limited","80874","159.23","R&M - Departmental planned (external)","130139651","14/10/2016","Markets","Bilston Market and Licensed Operations","R2001"
"Wolverhampton City Council","http://opendatacommunities.org/id/metropolitan-district-council/wolverhampton","William Gough Limited","80584","93.45","R&M - Departmental planned (external)","130141032","14/10/2016","Maintenance Programme","Centralised R&M","R2001"
"Wolverhampton City Council","http://opendatacommunities.org/id/metropolitan-district-council/wolverhampton","William Gough Limited","80826","324.84","R&M - Departmental planned (external)","130138017","14/10/2016","Maintenance Programme","Centralised R&M","R2001"
"Wolverhampton City Council","http://opendatacommunities.org/id/metropolitan-district-council/wolverhampton","William Gough Limited","80878","520.45","R&M - Departmental planned (external)","130139653","14/10/2016","Facilities Management","Civic Centre","R2001"
"Wolverhampton City Council","http://opendatacommunities.org/id/metropolitan-district-council/wolverhampton","William Gough Limited","80880","2,839.37","R&M - Departmental planned (external)","130139654","14/10/2016","Maintenance Programme","Centralised R&M","R2001"
"Wolverhampton City Council","http://opendatacommunities.org/id/metropolitan-district-council/wolverhampton","William Gough Limited","80882","3,854.75","R&M - Departmental planned (external)","130139656","14/10/2016","Facilities Management","Management of Vacant Properties","R2001"
"Wolverhampton City Council","http://opendatacommunities.org/id/metropolitan-district-council/wolverhampton","William Gough Limited","80883","251.47","R&M - Departmental planned (external)","130139657","14/10/2016","Facilities Management","Civic Centre","R2001"
"Wolverhampton City Council","http://opendatacommunities.org/id/metropolitan-district-council/wolverhampton","William Gough Limited","80357","5,094.20","R&M - Departmental planned (external)","130138189","14/10/2016","City Development","Southside","R2001"
"Wolverhampton City Council","http://opendatacommunities.org/id/metropolitan-district-council/wolverhampton","William Gough Limited","80851","1,188.42","R&M - Departmental planned (external)","130138991","14/10/2016","Maintenance Programme","Centralised R&M","R2001"
"Wolverhampton City Council","http://opendatacommunities.org/id/metropolitan-district-council/wolverhampton","William Gough Limited","80830","7,764.38","Construction and Conversion","130138192","14/10/2016","","Corporate Asset Management","C1100"
"Wolverhampton City Council","http://opendatacommunities.org/id/metropolitan-district-council/wolverhampton","William Gough Limited","80813","94.36","R&M - Departmental planned (external)","130137860","14/10/2016","Maintenance Programme","Centralised R&M","R2001"
"Wolverhampton City Council","http://opendatacommunities.org/id/metropolitan-district-council/wolverhampton","Wmsnt Accessible Transport Ser Limited","4784","1,989.90","Client Transport","130140548","28/10/2016","School Planning & Resources","Special - Transport","R3042"
"Wolverhampton City Council","http://opendatacommunities.org/id/metropolitan-district-council/wolverhampton","Wolters Kluwer (UK) Limited","1101423910","734.92","Subscriptions","130139314","05/10/2016","Audit Services","Health & Safety","R4701"
"Wolverhampton City Council","http://opendatacommunities.org/id/metropolitan-district-council/wolverhampton","Wolverhampton & Bilston Athletic Club","WBAC 020","1,175.00","Grant Payments","130142515","26/10/2016","Sports Development","Self-Reliant Communities Project","R4700"
"Wolverhampton City Council","http://opendatacommunities.org/id/metropolitan-district-council/wolverhampton","Wolverhampton & Bilston Athletic Club","WBAC019","2,535.00","Services - Fees and Charges","130142400","26/10/2016","Leisure Services","Aldersley Leisure Village","R4401"
"Wolverhampton City Council","http://opendatacommunities.org/id/metropolitan-district-council/wolverhampton","Wolverhampton Citizens Advice Bureau","781 - 16","18,516.37","TPP - Public Health Contracts","130135166","05/10/2016","Contracts","Wider determinants","R5060"
"Wolverhampton City Council","http://opendatacommunities.org/id/metropolitan-district-council/wolverhampton","Wolverhampton Doctors Limited","FOS0245","73.86","Services - Professional Fees","190273376","07/10/2016","Looked After Children","Fostering Team & Allowances","R4400"
"Wolverhampton City Council","http://opendatacommunities.org/id/metropolitan-district-council/wolverhampton","Wolverhampton Doctors Limited","M2016Q215SHCIFIQ","183.84","TPP - Public Health Contracts","190279050","26/10/2016","Contracts","Sexual Health","R5060"
"Wolverhampton City Council","http://opendatacommunities.org/id/metropolitan-district-council/wolverhampton","Wolverhampton Doctors Limited","M2016Q2.15SHIUDRQ","43.14","TPP - Public Health Contracts","190279055","26/10/2016","Contracts","Sexual Health","R5060"
"Wolverhampton City Council","http://opendatacommunities.org/id/metropolitan-district-council/wolverhampton","Wolverhampton Doctors Limited","M2016Q215SHCIFRQ","45.96","TPP - Public Health Contracts","190279051","26/10/2016","Contracts","Sexual Health","R5060"
"Wolverhampton City Council","http://opendatacommunities.org/id/metropolitan-district-council/wolverhampton","Wolverhampton Doctors Limited","M2016Q215SHIUFRQ","21.57","TPP - Public Health Contracts","190279054","26/10/2016","Contracts","Sexual Health","R5060"
"Wolverhampton City Council","http://opendatacommunities.org/id/metropolitan-district-council/wolverhampton","Wolverhampton Doctors Limited","M2016Q215SHCIFBQ","306.35","TPP - Public Health Contracts","190279052","26/10/2016","Contracts","Sexual Health","R5060"
"Wolverhampton City Council","http://opendatacommunities.org/id/metropolitan-district-council/wolverhampton","Wolverhampton Doctors Limited","M2016Q215SHIUDFQ","479.40","TPP - Public Health Contracts","190279053","26/10/2016","Contracts","Sexual Health","R5060"
"Wolverhampton City Council","http://opendatacommunities.org/id/metropolitan-district-council/wolverhampton","Wolverhampton Domestic Violence Forum","312","72.00","Training Expenses","130140250","28/10/2016","Childrens Commissioning","Childrens Commissioning","R1650"
"Wolverhampton City Council","http://opendatacommunities.org/id/metropolitan-district-council/wolverhampton","Wolverhampton Grammar School","WGS0560","5,766.68","TPP - Independent Schools","130140875","14/10/2016","Standards and Vulnerable Pupils","SEN Education OOC","R5036"
"Wolverhampton City Council","http://opendatacommunities.org/id/metropolitan-district-council/wolverhampton","Wolverhampton Grand Theatre (1982) Ltd","INV06590","500.00","Marketing \ Non-staff advertising","130139461","26/10/2016","Corporate Communications","Communications & Marketing - General","R4317"
"Wolverhampton City Council","http://opendatacommunities.org/id/metropolitan-district-council/wolverhampton","Wolverhampton Homes Limited","2600016158","452.92","Equipment - Purchase","130137008","05/10/2016","Housing Revenue Account - Communities","Carelink","R4000"
"Wolverhampton City Council","http://opendatacommunities.org/id/metropolitan-district-council/wolverhampton","Wolverhampton Homes Limited","2600011731","3,981.50","Construction and Conversion","130138335","05/10/2016","","Adaptations for People with Disabilites","C1100"
"Wolverhampton City Council","http://opendatacommunities.org/id/metropolitan-district-council/wolverhampton","Wolverhampton Homes Limited","2600011731","-3,981.50","Construction and Conversion","130138335","05/10/2016","","Adaptations for People with Disabilites","C1100"
"Wolverhampton City Council","http://opendatacommunities.org/id/metropolitan-district-council/wolverhampton","Wolverhampton Homes Limited","2600011731","3,981.58","Construction and Conversion","130138335","05/10/2016","","Adaptations for People with Disabilites","C1100"
"Wolverhampton City Council","http://opendatacommunities.org/id/metropolitan-district-council/wolverhampton","Wolverhampton Homes Limited","2600012666","4,750.78","Construction and Conversion","130112367","05/10/2016","","Adaptations for People with Disabilites","C1100"
"Wolverhampton City Council","http://opendatacommunities.org/id/metropolitan-district-council/wolverhampton","Wolverhampton Homes Limited","2600012666","-4,750.78","Construction and Conversion","130112367","05/10/2016","","Adaptations for People with Disabilites","C1100"
"Wolverhampton City Council","http://opendatacommunities.org/id/metropolitan-district-council/wolverhampton","Wolverhampton Homes Limited","2600012666","4,750.78","Construction and Conversion","130112367","05/10/2016","","Adaptations for People with Disabilites","C1100"
"Wolverhampton City Council","http://opendatacommunities.org/id/metropolitan-district-council/wolverhampton","Wolverhampton Homes Limited","P12905520161025","1,391.20","TPP - Residential Care - Long Term","190279731","26/10/2016","Learning Disability Assessment & Care Management","LD Care Purchasing (Spot Placements)","R5400"
"Wolverhampton City Council","http://opendatacommunities.org/id/metropolitan-district-council/wolverhampton","Wolverhampton Homes Limited","2600016597","3,476.34","Construction and Conversion","130138952","26/10/2016","","Adaptations for People with Disabilites","C1100"
"Wolverhampton City Council","http://opendatacommunities.org/id/metropolitan-district-council/wolverhampton","Wolverhampton Homes Limited","2600016677","3,100.97","Construction and Conversion","130139341","26/10/2016","","Adaptations for People with Disabilites","C1100"
"Wolverhampton City Council","http://opendatacommunities.org/id/metropolitan-district-council/wolverhampton","Wolverhampton Homes Limited","2600016541","-4,750.78","Construction and Conversion","130138950","26/10/2016","","Adaptations for People with Disabilites","C1100"
"Wolverhampton City Council","http://opendatacommunities.org/id/metropolitan-district-council/wolverhampton","Wolverhampton Homes Limited","2600016541","4,750.78","Construction and Conversion","130138950","26/10/2016","","Adaptations for People with Disabilites","C1100"
"Wolverhampton City Council","http://opendatacommunities.org/id/metropolitan-district-council/wolverhampton","Wolverhampton Homes Limited","2600016541","-4,750.78","Construction and Conversion","130138950","26/10/2016","","Adaptations for People with Disabilites","C1100"
"Wolverhampton City Council","http://opendatacommunities.org/id/metropolitan-district-council/wolverhampton","Wolverhampton Homes Limited","2600016550","4,555.78","Construction and Conversion","130138951","26/10/2016","","Adaptations for People with Disabilites","C1100"
"Wolverhampton City Council","http://opendatacommunities.org/id/metropolitan-district-council/wolverhampton","Wolverhampton Homes Limited","2600016550","-4,555.78","Construction and Conversion","130138951","26/10/2016","","Adaptations for People with Disabilites","C1100"
"Wolverhampton City Council","http://opendatacommunities.org/id/metropolitan-district-council/wolverhampton","Wolverhampton Homes Limited","2600016550","4,555.78","Construction and Conversion","130138951","26/10/2016","","Adaptations for People with Disabilites","C1100"
"Wolverhampton City Council","http://opendatacommunities.org/id/metropolitan-district-council/wolverhampton","Wolverhampton Homes Limited","2600016603","2,792.47","Construction and Conversion","130138953","26/10/2016","","Adaptations for People with Disabilites","C1100"
"Wolverhampton City Council","http://opendatacommunities.org/id/metropolitan-district-council/wolverhampton","Wolverhampton Homes Limited","260001664X","560.44","Construction and Conversion","130138957","26/10/2016","","Disabled Facilities Grants","C1100"
"Wolverhampton City Council","http://opendatacommunities.org/id/metropolitan-district-council/wolverhampton","Wolverhampton Homes Limited","Invoice number 1104832H","30.74","Fixtures and Fittings - R&M","190276276","19/10/2016","Housing Revenue Account","Hostels / Outreach","R2502"
"Wolverhampton City Council","http://opendatacommunities.org/id/metropolitan-district-council/wolverhampton","Wolverhampton Homes Limited","Invoice number 1105128N","45.74","Fixtures and Fittings - R&M","190275025","14/10/2016","Housing Revenue Account","Hostels / Outreach","R2502"
"Wolverhampton City Council","http://opendatacommunities.org/id/metropolitan-district-council/wolverhampton","Wolverhampton Homes Limited","2600016407","80.00","R&M - Departmental planned (internal)","130138342","14/10/2016","Independent Living Service","Telecare","R2000"
"Wolverhampton City Council","http://opendatacommunities.org/id/metropolitan-district-council/wolverhampton","Wolverhampton Homes Limited","2600016452","10,348.95","Adaptations","130138948","14/10/2016","Independent Living Service","Independent Living Service","R4411"
"Wolverhampton City Council","http://opendatacommunities.org/id/metropolitan-district-council/wolverhampton","Wolverhampton Homes Limited","2600016452","-10,348.95","Adaptations","130138948","14/10/2016","Independent Living Service","Independent Living Service","R4411"
"Wolverhampton City Council","http://opendatacommunities.org/id/metropolitan-district-council/wolverhampton","Wolverhampton Homes Limited","2600016452","10,348.95","Adaptations","130138948","14/10/2016","Independent Living Service","Independent Living Service","R4411"
"Wolverhampton City Council","http://opendatacommunities.org/id/metropolitan-district-council/wolverhampton","Wolverhampton Homes Limited","2600016416","80.00","R&M - Departmental planned (internal)","130138153","14/10/2016","Independent Living Service","Telecare","R2000"
"Wolverhampton City Council","http://opendatacommunities.org/id/metropolitan-district-council/wolverhampton","Wolverhampton Radiators","33309","12.00","Equipment - Purchase","190272268","05/10/2016","Fleet Services","Fleet Management","R4000"
"Wolverhampton City Council","http://opendatacommunities.org/id/metropolitan-district-council/wolverhampton","Signal 107","333733","1,020.00","Marketing \ Non-staff advertising","130140527","26/10/2016","Markets","Wolverhampton Indoor and Open Market","R4317"
"Wolverhampton City Council","http://opendatacommunities.org/id/metropolitan-district-council/wolverhampton","Signal 107","333550","970.00","Marketing \ Non-staff advertising","130140526","12/10/2016","Markets","Bilston Market and Licensed Operations","R4317"
"Wolverhampton City Council","http://opendatacommunities.org/id/metropolitan-district-council/wolverhampton","Wolverhampton Science Park Limited/Uow.","K010011","87.00","Training Expenses","130140166","26/10/2016","Audit Services","Site Management Health & Safety","R1650"
"Wolverhampton City Council","http://opendatacommunities.org/id/metropolitan-district-council/wolverhampton","Wolverhampton Travel","161701","1,900.00","Client Transport","130139558","05/10/2016","School Planning & Resources","Special - Transport","R3042"
"Wolverhampton City Council","http://opendatacommunities.org/id/metropolitan-district-council/wolverhampton","Wolverhampton Travel","161701A","1,888.60","Client Transport","130139559","05/10/2016","School Planning & Resources","Special - Transport","R3042"
"Wolverhampton City Council","http://opendatacommunities.org/id/metropolitan-district-council/wolverhampton","Wolverhampton Waste Services Limited","W57/16","12,675.50","TPP - Other contractors","130140195","26/10/2016","Waste and Recycling Service","Waste Disposal - General","R5099"
"Wolverhampton City Council","http://opendatacommunities.org/id/metropolitan-district-council/wolverhampton","Wolverhampton Waste Services Limited","W56/16","573,757.39","TPP - Other contractors","130140194","26/10/2016","Waste and Recycling Service","Waste Disposal - General","R5099"
"Wolverhampton City Council","http://opendatacommunities.org/id/metropolitan-district-council/wolverhampton","Wolverhampton Youth Zone","WYZ136","50,000.00","Grant Payments","130137919","07/10/2016","Speclialist Support","Vulnerable Young Persons Team","R4700"
"Wolverhampton City Council","http://opendatacommunities.org/id/metropolitan-district-council/wolverhampton","Wolverhampton Youth Zone","WYZ135","4,680.00","TPP - Grants","130137918","07/10/2016","City Development","Strategic Asset Management - Youth Zone","R5001"
"Wolverhampton City Council","http://opendatacommunities.org/id/metropolitan-district-council/wolverhampton","Wolverhampton Youth Zone","WYZ151","1,000.00","Services - Supplies and Services to service users","130138749","21/10/2016","Learning Disability Provider","Community Enablement","R4408"
"Wolverhampton City Council","http://opendatacommunities.org/id/metropolitan-district-council/wolverhampton","Wolverhampton Youth Zone","WYZ151","-1,000.00","Services - Supplies and Services to service users","130138749","21/10/2016","Learning Disability Provider","Community Enablement","R4408"
"Wolverhampton City Council","http://opendatacommunities.org/id/metropolitan-district-council/wolverhampton","Wolverhampton Youth Zone","WYZ151","1,000.00","Services - Supplies and Services to service users","130138749","21/10/2016","Learning Disability Provider","Community Enablement","R4408"
"Wolverhampton City Council","http://opendatacommunities.org/id/metropolitan-district-council/wolverhampton","Wolverhampton Youth Zone","WYZ150","111.00","Catering","130138748","21/10/2016","Managing Director","Managing Director","R4100"
"Wolverhampton City Council","http://opendatacommunities.org/id/metropolitan-district-council/wolverhampton","Wombourne Travel Limited","CC456","1,140.00","Client Transport","130140135","26/10/2016","School Planning & Resources","Special - Transport","R3042"
"Wolverhampton City Council","http://opendatacommunities.org/id/metropolitan-district-council/wolverhampton","Wombourne Travel Limited","CC457","1,275.00","Client Transport","130140136","26/10/2016","School Planning & Resources","Special - Transport","R3042"
"Wolverhampton City Council","http://opendatacommunities.org/id/metropolitan-district-council/wolverhampton","Wombourne Travel Limited","CC455","1,253.00","Client Transport","130140134","26/10/2016","School Planning & Resources","Special - Transport","R3042"
